Cogmind - Beta 16.1 @@@ ROGUE MODE // 2026.04.26 @ 00:52:03 Player: Thqwib-Linux Result: Destroyed by V957-k with Concept XC Strikerail Performance ------------- Evolutions (8) 4000 Regions Visited (34) 6800 Robots Destroyed (179) 895 Value Destroyed (6132) 6132 Prototype IDs (87) 1740 Alien Tech Used (5) 1000 Bonus (6570) 6570 TOTAL SCORE: 27137 Bonus ------- High Alert Combat Kills 19 Follower Combat Kills 336 Met Data Miner 300 Met Zhirov 300 Met Warlord at Base 500 MAIN.C Attacked Warlord 500 Warlord Defense Kills 944 Hacked Protovariant 500 Met Warlord at Research 2000 Invited to Help at Command 2000 Friendly Fire -829 Cogmind --------- Core Integrity 0/1450 Matter 199/300 Energy 99/100 System Corruption 22% Temperature Cool (0) Movement Core (50) Location -2/Protoforge Parts ------- > --- POWER (2) -------- (None) > --- PROPULSION (6) --- (None) > --- UTILITY (13) ----- Spectral Analyzer Experimental Core Analyzer > --- WEAPON (2) ------- (None) > --- INVENTORY (5) ---- Particle Reactor Advanced Cooling System Concept Weapon Articulator Mini Quantum Capacitor Hypervelocity Multirail Peak State ------------ > --- POWER ------------ Backup Power VII Light Quantum Reactor > --- PROPULSION ------- Cooled Nuclear Pulse Thruster Cooled Nuclear Pulse Thruster Cooled Nuclear Pulse Thruster Improved Diametric Drive Cooled Impulse Thruster Cooled Q-thruster > --- UTILITY ---------- Small Storage Unit Spectral Analyzer Advanced Sensor Array Advanced Signal Interpreter Experimental Terrain Scanner Advanced Terrain Scan Processor Experimental Melee Analysis Suite Experimental Core Analyzer Experimental Core Analyzer Advanced ECM Suite Light Regenerative Plating Advanced Hacking Suite Advanced Hacking Suite > --- WEAPON ----------- Core Stripper > --- INVENTORY -------- Q-thruster Advanced Cooling System Stasis Canceller Experimental Reaction Control System Improved Propulsion Shielding Graphene Brace Hypervelocity Multirail Particle Cleaver [Rating: 182] Favorites ----------- Power Micro Nuclear Core Engine Improved Ion Engine Power Core Micro Nuclear Core Reactor Micro Antimatter Reactor Propulsion Cooled Nuclear Pulse Thruster Treads Light Treads Leg Aluminum Leg Wheel Compact Wheel Flight Unit Cooled Nuclear Pulse Thruster Utility Core Analyzer Device Improved Sensor Array Storage High-capacity Storage Unit Processor Core Analyzer Hackware Advanced System Shield Protection Light Regenerative Plating Artifact Phase Redirector Weapon Autogun Energy Gun Warp Gun Energy Cannon Beam Cannon Ballistic Gun Autogun Ballistic Cannon Improved Light Cannon Launcher Improved Grenade Launcher Impact Weapon Great Maul Slashing Weapon Makeshift Sword Build | -11 -10 -10 -9 -9 -9 -8 -8 -7 -7 -7 -7 -6 -6 -6 -6 -6 -6 -6 -5 -5 -5 -5 -5 -4 -4 -4 -4 -4 -3 -3 -3 -2 -2 -2 ------- Run | Yrd Mat Min Mat Min Exi Min Mat Fac Low Low Zio Pro Fac Was Fac Low Low Dat Pro Fac Upp Upp War Pro Fac Upp Upp Zhi Pro Res Tes Res Qua Frg Slots Evolved 16 | . . . 2 . . . 2 2 . . . . 2 . . . . . . 2 . . . . 2 . . . . 2 . 2 . . Power 1 | . . . . . . . . . . . . . . . . . . . . . . . . . . . . . . 1 . . . . Propulsion 4 | . . . 1 . . . 1 1 . . . . 1 . . . . . . . . . . . . . . . . . . . . . Utility 11 | . . . 1 . . . 1 1 . . . . 1 . . . . . . 2 . . . . 2 . . . . 1 . 2 . . Weapon . | . . . . . . . . . . . . . . . . . . . . . . . . . . . . . . . . . . . Parts Attached 195 | 3 8 4 20 3 1 1 25 12 1 1 6 . 1 4 1 . . . . 9 . . 7 1 9 1 . 5 2 11 19 14 6 20 Power 20 | . 1 . 3 1 . . 2 1 . 1 . . . . . . . . . 2 . . . . . . . 1 . 3 2 2 . 1 Engine 7 | . . . 3 . . . . . . . . . . . . . . . . 1 . . . . . . . . . 1 1 . . 1 Core 8 | . 1 . . 1 . . 2 1 . 1 . . . . . . . . . 1 . . . . . . . . . 1 . . . . Reactor 5 | . . . . . . . . . . . . . . . . . . . . . . . . . . . . 1 . 1 1 2 . . Propulsion 51 | 2 2 1 7 1 . 1 13 5 . . 2 . . 1 . . . . . . . . 3 . 3 . . 3 . 1 3 1 1 1 Treads 19 | 1 1 1 4 1 . . 11 . . . . . . . . . . . . . . . . . . . . . . . . . . . Leg . | . . . . . . . . . . . . . . . . . . . . . . . . . . . . . . . . . . . Wheel 8 | 1 1 . 3 . . 1 2 . . . . . . . . . . . . . . . . . . . . . . . . . . . Hover . | . . . . . . . . . . . . . . . . . . . . . . . . . . . . . . . . . . . Flight 24 | . . . . . . . . 5 . . 2 . . 1 . . . . . . . . 3 . 3 . . 3 . 1 3 1 1 1 Utility 82 | . 2 2 3 1 1 . 4 5 . . 3 . 1 3 1 . . . . 7 . . 3 . 5 . . 1 2 4 11 10 4 9 Device 32 | . 1 2 . 1 . . 2 1 . . 1 . 1 1 . . . . . . . . 2 . 2 . . . . 1 4 5 1 7 Storage 5 | . 1 . 1 . . . . 1 . . . . . . . . . . . . . . . . 1 . . . . . . . 1 . Processor 22 | . . . 1 . . . 2 3 . . . . . 1 . . . . . 4 . . . . 1 . . . 1 1 4 3 . 1 Hackware 7 | . . . . . . . . . . . 2 . . . . . . . . 1 . . . . . . . . 1 . 1 1 1 . Protection 15 | . . . 1 . 1 . . . . . . . . 1 1 . . . . 2 . . 1 . 1 . . 1 . 2 2 1 . 1 Artifact 1 | . . . . . . . . . . . . . . . . . . . . . . . . . . . . . . . . . 1 . Weapon 42 | 1 3 1 7 . . . 6 1 1 . 1 . . . . . . . . . . . 1 1 1 1 . . . 3 3 1 1 9 Energy Gun 12 | . 1 . 2 . . . . . . . . . . . . . . . . . . . 1 . . 1 . . . 3 1 . . 3 Energy Cannon 1 | . 1 . . . . . . . . . . . . . . . . . . . . . . . . . . . . . . . . . Ballistic Gun 18 | 1 1 1 4 . . . 6 . . . . . . . . . . . . . . . . 1 . . . . . . 1 . . 3 Ballistic Cannon 2 | . . . 1 . . . . . . . . . . . . . . . . . . . . . . . . . . . . . . 1 Launcher 3 | . . . . . . . . . 1 . . . . . . . . . . . . . . . 1 . . . . . 1 . . . Special Weapon . | . . . . . . . . . . . . . . . . . . . . . . . . . . . . . . . . . . . Impact Weapon 2 | . . . . . . . . 1 . . . . . . . . . . . . . . . . . . . . . . . . 1 . Slashing Weapon 4 | . . . . . . . . . . . 1 . . . . . . . . . . . . . . . . . . . . 1 . 2 Piercing Weapon . | . . . . . . . . . . . . . . . . . . . . . . . . . . . . . . . . . . . Special Melee Weapon . | . . . . . . . . . . . . . . . . . . . . . . . . . . . . . . . . . . . Unidentified Prototypes 51 | . . . 2 1 . . . . . . 1 . . 2 . . . . . 1 . . 4 1 2 . . 4 . 2 5 7 2 17 Parts Lost 47 | . 1 . 5 . . . 8 . . 2 . . . 1 . . . . . 3 . . 1 . . . . . . 5 . . . 21 Power 5 | . . . 1 . . . 1 . . . . . . . . . . . . 1 . . . . . . . . . . . . . 2 Propulsion 16 | . . . 2 . . . 4 . . 1 . . . 1 . . . . . 2 . . . . . . . . . . . . . 6 Utility 17 | . 1 . . . . . 1 . . 1 . . . . . . . . . . . . 1 . . . . . . 3 . . . 10 Weapon 9 | . . . 2 . . . 2 . . . . . . . . . . . . . . . . . . . . . . 2 . . . 3 Highest Loss Streak 15 | . 1 . 2 . . . 3 . . 2 . . . 1 . . . . . 2 . . 1 . . . . . . 5 . . . 15 To Critical Strikes 2 | . . . . . . . . . . . . . . . . . . . . . . . . . . . . . . . . . . 2 Average Backups 8 | 5 11 13 14 20 19 20 18 9 5 5 5 5 5 5 5 5 5 5 5 4 5 5 4 4 5 6 8 9 10 9 6 4 7 5 Power . | 1 1 1 . 1 1 1 . . . . . . . . . . . . . . 1 1 . . . . . . . . . . . . Propulsion 1 | 3 6 7 4 4 4 3 4 1 . . . . . . . . . . . . . . . . . . . . . 1 1 . . . Utility 3 | . 1 2 2 5 5 6 6 5 3 3 3 3 3 3 3 3 3 3 3 2 2 2 1 1 1 3 3 3 3 2 3 3 4 2 Weapon 3 | 1 2 3 5 9 9 9 5 2 2 2 2 2 2 2 2 2 2 2 2 2 2 2 2 3 3 3 5 6 5 4 1 1 1 1 Tool/Special . | . . . . . . . . . . . . . . . . . . . . . . . . . . . . . . . . . . . Unused Backups 28 | . 4 . 2 . . 1 8 2 . . 1 . . 1 1 . . . . 2 . . . . 1 . . . . . 2 1 . 2 Power 3 | . 2 . . . . . . . . . . . . . . . . . . . . . . . . . . . . . . . . 1 Propulsion 5 | . . . . . . . 3 . . . . . . . . . . . . . . . . . . . . . . . 2 . . . Utility 12 | . 1 . 1 . . 1 . 2 . . 1 . . 1 1 . . . . 2 . . . . . . . . . . . 1 . 1 Weapon 8 | . 1 . 1 . . . 5 . . . . . . . . . . . . . . . . . 1 . . . . . . . . . Tool/Special . | . . . . . . . . . . . . . . . . . . . . . . . . . . . . . . . . . . . Average Slot Usage (%) 94 | . 95 97 97 100 100 100 91 93 100 98 96 100 90 90 93 93 93 93 93 89 82 82 88 100 96 100 100 92 99 88 97 99 95 79 Engine 1 | . 4 . 9 2 . . . . . . . . . . . . . . . . 5 5 1 . . . . . . . 1 . . 2 Core 4 | . 9 14 1 8 11 11 3 7 7 7 7 7 6 6 6 6 6 6 6 4 . . 3 5 5 5 5 2 . . 3 4 4 . Treads 5 | . 14 14 16 11 11 11 20 8 . . . . . . . . . . . . . . . . . . . . . . . . . . Wheel 5 | . 14 14 15 22 22 22 13 . . . . . . . . . . . . . . . . . . . . . . . . . . . Flight 18 | . . . . . . . . 26 38 37 36 38 31 32 33 33 33 33 33 24 17 17 25 35 31 31 31 31 31 28 28 26 25 24 Device 8 | . 10 11 7 . . . 7 11 15 14 7 7 11 5 6 6 6 6 6 5 5 5 5 11 10 6 5 5 5 3 10 13 9 9 Storage 4 | . 14 14 11 11 11 11 9 2 . . . . . . . . . . . . . . . . 1 5 5 5 5 4 1 . 3 1 Processor 17 | . . . 9 11 11 11 17 19 23 23 16 15 13 13 13 13 13 13 13 22 23 23 23 23 22 26 26 26 26 23 26 26 26 18 Hackware 5 | . . . . . . . . . . . 11 15 13 13 13 13 13 13 13 11 11 11 7 5 5 5 5 5 9 8 8 8 8 7 Protection 4 | . . . 3 11 11 11 1 . . . . . . 4 6 6 6 6 6 5 5 5 5 5 8 8 9 9 5 4 1 6 7 6 Energy Gun 2 | . 13 . 6 . . . . . . . . . . . . . . . . . . . 2 2 . 1 4 . 4 3 3 4 . . Energy Cannon 1 | . 10 12 . . . . . . . . . . . . . . . . . . . . . . . . . . . . . . . . Ballistic Gun 8 | . 3 15 13 22 22 22 17 11 10 14 14 14 13 13 13 13 13 13 12 7 10 11 7 1 5 3 . . . . . . . . Slashing Weapon 1 | . . . . . . . . . . . . . . . . . . . . 2 . . . 5 5 5 5 3 5 4 4 4 4 1 Peak Build Rating 182 | 6 10 12 21 27 22 23 31 32 32 32 41 41 46 51 47 47 47 47 47 63 52 52 92 93 114 110 109 104 111 120 144 178 182 169 Average Rating 66 | 6 8 11 18 21 22 22 23 31 32 31 37 40 44 44 46 47 47 47 47 58 52 52 70 91 103 106 104 100 109 111 129 161 162 141 On Entrance 60 | 6 6 9 12 21 22 22 23 31 32 32 27 40 40 40 46 47 47 47 47 47 53 52 52 92 93 106 109 105 103 111 113 136 173 164 Avg Prop Armor Cover (%) 11 | 14 13 12 14 8 8 8 17 7 . . . . 3 . . . . . . . . . 2 2 2 . . . . . . . . . Naked Turns . | . . . . . . . . . . . . . . . . . . . . . . . . . . . . . . . . . . . Heaviest Build 60 | 10 31 31 60 60 58 58 59 53 18 18 14 13 14 21 21 20 23 20 23 27 24 21 34 34 42 42 42 36 36 46 39 40 41 49 Greatest Support 80 | 16 16 16 32 32 32 32 80 80 20 20 28 28 28 30 30 30 30 30 30 33 21 21 41 40 44 43 49 43 39 54 52 54 54 54 Greatest Overweight (x) 4 | . 1 1 2 1 1 1 4 1 . . . . . . . . . . . . 1 . . . . . . . . . . . 1 . Average Overweight (x) . | . . 1 1 1 1 1 1 . . . . . . . . . . . . . . . . . . . . . . . . . . . Largest Inventory Capacity 20 | 8 15 15 20 20 20 20 20 20 5 5 5 5 5 5 5 5 5 5 5 5 5 5 5 5 10 10 10 10 10 10 10 5 8 8 Average Capacity 9 | 8 12 15 17 20 20 20 20 9 5 5 5 5 5 5 5 5 5 5 5 5 5 5 5 5 6 10 10 10 10 10 6 5 7 6 Most Carried 20 | 6 15 14 20 20 20 20 20 20 5 5 5 5 5 5 5 5 5 5 5 5 5 5 5 5 7 8 8 10 10 10 10 5 8 8 Average Carried 8 | 5 11 13 14 19 19 19 18 8 5 5 4 5 5 5 4 5 5 5 5 4 5 5 4 4 5 6 8 9 9 9 6 4 7 5 Final Capacity 20 | 8 15 15 20 20 20 20 20 5 5 5 5 5 5 5 5 5 5 5 5 5 5 5 5 5 10 10 10 10 10 10 5 5 8 5 Final Carried 20 | 6 14 14 20 20 20 20 17 5 5 5 5 5 5 5 5 5 5 5 5 5 5 5 4 5 6 8 8 10 10 9 5 5 8 5 Class Distribution -------------------- 42% | Hacker-Scout 21% | Scavenger-Mutant 13% | Mutant 7% | Scavenger-Scout 5% | Scout Dominant Class ---------------- Mutant | -10/Materials Mutant | -10/Mines Scavenger-Mutant | -9/Materials Scavenger-Mutant | -9/Mines Scavenger-Mutant | -9/Exiles Scavenger-Mutant | -8/Mines Scavenger-Mutant | -8/Materials Scavenger-Scout | -7/Factory Scavenger-Scout | -7/Lower Caves Scavenger-Scout | -7/Lower Caves Hacker-Scout | -7/Zion Hacker-Scout | -6/Proximity Caves Hacker-Skirmisher | -6/Factory Hacker-Scout | -6/Waste Hacker-Scout | -6/Factory Hacker-Scout | -6/Lower Caves Hacker-Scout | -6/Lower Caves Hacker-Scout | -6/Data Miner Hacker-Scout | -5/Proximity Caves Hacker-Scout | -5/Factory Hacker-Scout | -5/Upper Caves Hacker-Scout | -5/Upper Caves Scout | -5/Warlord Ninja | -4/Proximity Caves Infiltrator-Ninja | -4/Factory Ninja | -4/Upper Caves Scout | -4/Upper Caves Scout | -4/Zhirov Hacker-Scout | -3/Proximity Caves Hacker-Scout | -3/Research Hacker-Scout | -3/Testing Hacker-Scout | -2/Research Scavenger-Scout | -2/Quarantine Hacker-Sprinter | -2/Protoforge Resources | -11 -10 -10 -9 -9 -9 -8 -8 -7 -7 -7 -7 -6 -6 -6 -6 -6 -6 -6 -5 -5 -5 -5 -5 -4 -4 -4 -4 -4 -3 -3 -3 -2 -2 -2 ----------- Run | Yrd Mat Min Mat Min Exi Min Mat Fac Low Low Zio Pro Fac Was Fac Low Low Dat Pro Fac Upp Upp War Pro Fac Upp Upp Zhi Pro Res Tes Res Qua Frg Matter Collected 5975 | 232 105 122 743 3 . 91 1044 . 149 42 196 90 46 135 . 64 51 . 129 216 86 36 139 76 106 . . 295 20 311 375 230 220 623 Remotely . | . . . . . . . . . . . . . . . . . . . . . . . . . . . . . . . . . . . Salvage Created 8350 | 50 514 248 1631 1 . 82 1407 28 99 40 . . 46 35 . 24 . . 25 381 . . 493 52 390 . . 315 . 634 534 160 360 801 Parts 413 | 4 29 12 82 . . 4 95 . 3 5 . . 2 2 . 1 . . . 13 . . 15 3 15 . . 5 . 23 41 10 17 32 Haulers Intercepted 18 | . 2 . 4 . . . 2 . . . . . . . . . . . . 3 . . . . 1 . . . . 3 1 . 2 . Recyclers Shooed 5 | 1 . 1 3 . . . . . . . . . . . . . . . . . . . . . . . . . . . . . . . Parts Field Recycled . | . . . . . . . . . . . . . . . . . . . . . . . . . . . . . . . . . . . Retrieved Matter . | . . . . . . . . . . . . . . . . . . . . . . . . . . . . . . . . . . . Parts Self-Destructed 16 | . . . . . . . . . 1 4 . . . . . 1 . . 2 . . . . 3 . . . 5 . . . . . . Prevented 2 | . . . . . . . . . . . . . . . . . . . . . 2 . . . . . . . . . . . . . Parts Restored 1 | . . . . . . . . . . . . . 1 . . . . . . . . . . . . . . . . . . . . . Broken 1 | . . . . . . . . . . . . . 1 . . . . . . . . . . . . . . . . . . . . . Kills | -11 -10 -10 -9 -9 -9 -8 -8 -7 -7 -7 -7 -6 -6 -6 -6 -6 -6 -6 -5 -5 -5 -5 -5 -4 -4 -4 -4 -4 -3 -3 -3 -2 -2 -2 ------- Run | Yrd Mat Min Mat Min Exi Min Mat Fac Low Low Zio Pro Fac Was Fac Low Low Dat Pro Fac Upp Upp War Pro Fac Upp Upp Zhi Pro Res Tes Res Qua Frg Combat Hostiles Destroyed 119 | . 10 7 28 1 . 1 30 . 3 1 . . . . . . . . 2 1 . . 8 4 . . . . . 4 4 2 1 12 Melee 6 | . . . . . . . . . . . . . . . . . . . . . . . . . . . . . . . 2 2 1 1 Guns 82 | . 7 2 23 1 . 1 29 . . 1 . . . . . . . . 2 1 . . 4 1 . . . . . 3 2 . . 5 Cannons 15 | . 3 5 5 . . . . . . . . . . . . . . . . . . . . . . . . . . . . . . 2 AOE 12 | . . . . . . . 1 . 3 . . . . . . . . . . . . . 4 3 . . . . . 1 . . . . Classes Destroyed 21 | 1 4 1 5 . . 1 2 . 1 1 . . . . . . . . 1 . . . 2 . . . . . . . 1 1 . . Worker 11 | . 2 . 1 . . . 2 . . . . . . . . . . . . . . . . . . . . . . 5 . . . 1 Builder 2 | . . 1 . . . . . . . . . . . . . . . . . . . . . . . . . . . . . 1 . . Tunneler 2 | . . . 1 . . 1 . . . . . . . . . . . . . . . . . . . . . . . . . . . . Hauler 18 | . 2 . 4 . . . 2 . . . . . . . . . . . . 3 . . . . 1 . . . . 3 1 . 2 . Recycler 7 | 1 . . 3 . . . . . . . . . . . . . . . . . . . . . 2 . . . . 1 . . . . Mechanic 3 | . . . 1 . . . 1 . . . . . 1 . . . . . . . . . . . . . . . . . . . . . Operator 3 | . . . 1 . . . 1 . . . . . . . . . . . . . . . . . . . . . . . 1 . . . Drone 2 | . . . . . . . . . . . . . . . . . . . 2 . . . . . . . . . . . . . . . Watcher 9 | . . . 3 . . . . 1 . . . . . . . . . . . . . . . . 1 . . . . . 2 . . 2 Swarmer 29 | . 3 3 3 . . . 9 . 3 . . . . . . . . . . . . . . 4 . . . . . 4 . . . . Grunt 43 | . 7 4 19 . . . 9 . . . . . . . . . . . . . . . 2 . . . . . . . 1 1 . . Brawler 3 | . . . . . . . 1 . . . . . . . . . . . . . . . 2 . . . . . . . . . . . Duelist 1 | . . . . . . . . . . . . . . . . . . . . . . . 1 . . . . . . . . . . . Protector 2 | . . . . . . . . . . . . . . . . . . . . . . . 2 . . . . . . . . . . . Researcher 2 | . . . . . . . . . . . . . . . . . . . . . . . . . . . . . . . 1 . 1 . Sentry 20 | . . . 6 . . . 7 . . . . . . . . . . . . 1 . . . . . . . . . . . . . 6 Specialist 2 | . . . . . . . 2 . . . . . . . . . . . . . . . . . . . . . . . . . . . Hunter 5 | . . . . . . 1 2 . . . . . . . . . . . . . . . 1 . . . . . . . 1 . . . Programmer 10 | . . . . . . . . . . 1 . . . . . . . . . . . . . . . . . . . . 2 . 1 6 Executioner 1 | . . . . . . . . . . . . . . . . . . . . . . . . . . . . . . . . 1 . . Decomposer 1 | . . . . . . . . . 1 . . . . . . . . . . . . . . . . . . . . . . . . . Samaritan 1 | . . . . . . . . . 1 . . . . . . . . . . . . . . . . . . . . . . . . . Wasp 1 | . . . . . . . . . . . . . . 1 . . . . . . . . . . . . . . . . . . . . Thug 2 | . . . . . . . . . . . . . . . . . . . . . . . 2 . . . . . . . . . . . Best Kill Streak 9 | 1 3 2 5 1 . 1 5 1 3 1 . . 1 . . . . . 2 1 . . 7 4 1 . . . . 9 3 2 1 3 Combat Bots Only 7 | . 3 2 5 1 . 1 5 . 3 1 . . . . . . . . 2 1 . . 7 4 . . . . . 4 2 2 1 3 Max Kills in Single Turn 4 | 1 1 1 2 1 . 1 1 1 2 1 . . 1 1 . . . . 1 1 . . 4 2 1 . . . . 2 1 1 1 1 Gunslinging . | . . . . . . . . . . . . . . . . . . . . . . . . . . . . . . . . . . . Exploded 2 | . . . . . . . 1 . 2 . . . . . . . . . . . . . 2 2 . . . . . 1 . . . . Melee 1 | . . . . . . . . . . . . . . . . . . . . . . . . . . . . . . . 1 1 1 1 Uniques/NPCs Destroyed 1 | . . . . 1 . . . . . . . . . . . . . . . . . . . . . . . . . . . . . . YI-UF0 (-9/Mines) Combat | -11 -10 -10 -9 -9 -9 -8 -8 -7 -7 -7 -7 -6 -6 -6 -6 -6 -6 -6 -5 -5 -5 -5 -5 -4 -4 -4 -4 -4 -3 -3 -3 -2 -2 -2 -------- Run | Yrd Mat Min Mat Min Exi Min Mat Fac Low Low Zio Pro Fac Was Fac Low Low Dat Pro Fac Upp Upp War Pro Fac Upp Upp Zhi Pro Res Tes Res Qua Frg Hostile Shots Fired 757 | . 40 23 136 6 . 8 160 9 3 11 . . . . . . . . . 25 2 . 12 6 6 . 12 . . 101 32 5 10 150 Missed 251 | . 8 4 41 1 . . 33 2 . 5 . . . . . . . . . 11 . . 7 3 4 . 6 . . 41 16 3 6 60 Hits 506 | . 32 19 95 5 . 8 127 7 3 6 . . . . . . . . . 14 2 . 5 3 2 . 6 . . 60 16 2 4 90 Melee 5 | . . . . . . . . . . . . . . . . . . . . . . . 1 . . . . . . . . . . 4 Projectile 501 | . 32 19 95 5 . 8 127 7 3 6 . . . . . . . . . 14 2 . 4 3 2 . 6 . . 60 16 2 4 86 AOE 7 | . . . . 5 . . . . . . . . . . . . . . . 1 . . 1 . . . . . . . . . . . Critical Strikes 27 | . . . 3 . . 1 5 . . 1 . . . . . . . . . 1 . . . . . . . . . 2 . 2 . 12 Actively Blocked 1 | . . . . . . . . . . . . . . . . . . . . . . . . . . . . . . . . . . 1 Damage Taken 9303 | . 398 244 1281 205 . 133 1820 53 48 70 . . . 22 . . 9 . 24 419 38 . 124 50 . 1 80 . . 1074 313 112 90 2695 Core 1931 | . 81 28 176 . . 49 245 5 . 23 . . . . . . . . . 37 . . 37 . . . 18 . . 77 29 52 41 1033 Absorbed by Shields 52 | . . . . . . . . . . . . . . . . . . . . . . . . . . . . . . . . . . 52 Redirected to Shielding 194 | . . . . . . . . . . . . . . . . . . . . . . . . . . . 16 . . 86 . 17 17 58 Regen/Repaired (Parts) 423 | . 44 . 41 . . . . . . . . . 13 1 . . . . . . . . 45 . 11 . . . . 71 . 82 69 46 Core Remaining (%) 80 | 100 . 56 . . . 43 55 . . . . 96 . . . . . . 100 . . . . 92 . . . . 98 . 84 . . . Volleys Fired 451 | 2 43 19 122 7 . 6 111 . 2 4 . . 5 3 . 2 3 . 8 15 3 . 16 4 . 3 4 . 5 16 7 . . 41 Largest 2 | 2 2 2 2 2 . 2 2 . 1 2 . . 2 2 . 2 1 . 2 2 1 . 2 1 . 1 1 . 1 1 1 . . 2 Hottest 110 | 60 110 80 79 46 . 46 46 . 36 48 . . 48 48 . 48 36 . 48 48 36 . 70 38 . 36 36 . 36 88 90 . . 110 Shots Fired 794 | 4 86 38 243 14 . 12 221 . 2 5 . . 10 6 . 3 3 . 10 29 3 . 17 4 . 4 4 . 5 16 7 . . 48 Gun 683 | 4 58 24 213 14 . 12 221 . . 2 . . 10 6 . 2 . . 4 29 . . 17 2 . 1 . . . 14 7 . . 43 Cannon 77 | . 28 14 30 . . . . . . . . . . . . . . . . . . . . . . . . . . . . . . 5 Launcher 34 | . . . . . . . . . 2 3 . . . . . 1 3 . 6 . 3 . . 2 . 3 4 . 5 2 . . . . Special . | . . . . . . . . . . . . . . . . . . . . . . . . . . . . . . . . . . . Kinetic 553 | 2 15 24 172 14 . 12 221 . . 2 . . 10 6 . 2 . . 4 29 . . 1 2 . 1 . . . . 5 . . 31 Thermal 162 | 2 71 14 71 . . . . . . . . . . . . . . . . . . . . . . . . . . 2 2 . . . Explosive 34 | . . . . . . . . . 2 3 . . . . . 1 3 . 6 . 3 . . 2 . 3 4 . 5 2 . . . . Electromagnetic . | . . . . . . . . . . . . . . . . . . . . . . . . . . . . . . . . . . . Entropic 45 | . . . . . . . . . . . . . . . . . . . . . . . 16 . . . . . . 12 . . . 17 Robot Hit Streak 23 | 3 9 8 23 11 . 7 20 . 4 6 . . 4 5 . 2 . . 3 10 . . 14 1 . . . . . 3 4 . . 20 Robot Miss Streak 5 | . 3 2 5 2 . 2 3 . . . . . 4 1 . . . . 1 1 . . 1 1 . . . . . 3 1 . . 4 Penetration Max 2 | . . . . . . . . . . . . . . . . . . . . . . . 2 . . . . . . . . . . . Secondary Targets 2 | . . . . . . . 2 . . . . . . . . . . . . . . . . . . . . . . . . . . . Max Gunslinging Chain 1 | . . . . . . . 1 . . . . . . . . . . . . . . . . . . . . . . . . . . . Capacitor 9 | . . . . . . . . . . . . . . . . . . . . . . . . . . . . . . . . . . 9 Shots Hit Robots 605 | 3 52 25 170 12 . 8 174 1 4 2 . . 5 4 . 1 . . 2 24 . . 15 1 6 . . 6 . 20 15 7 5 43 Core Hits 277 | 2 21 12 64 1 . 5 66 . 2 2 . . 3 4 . 1 . . 2 10 . . 19 5 3 . . 4 . 13 11 3 3 21 Critical Kills 12 | . . . . . . . 1 . . . . . . . . . . . . . . . . . . . . . . . 2 . . 9 Critical Parts Destroyed 18 | . . . 1 . . . 3 1 . . . . . . . . . . . . . . 3 . . . . . . . 3 . . 7 Critical Strikes 49 | . 1 . 5 . . . 4 1 . . . . . . . . . . . 1 . . 3 . 2 . . . . 1 6 1 . 24 Burn 5 | . 1 . 4 . . . . . . . . . . . . . . . . . . . . . . . . . . . . . . . Meltdown 4 | . . . . . . . . . . . . . . . . . . . . . . . . . . . . . . . . . . 4 Destroy 28 | . . . 1 . . . 4 . . . . . . . . . . . . 1 . . . . . . . . . . 5 . . 17 Blast 3 | . . . . . . . . . . . . . . . . . . . . . . . . . . . . . . . . . . 3 Smash 1 | . . . . . . . . 1 . . . . . . . . . . . . . . . . . . . . . . . . . . Sever 5 | . . . . . . . . . . . . . . . . . . . . . . . . . 2 . . . . 1 1 1 . . Detonate 3 | . . . . . . . . . . . . . . . . . . . . . . . 3 . . . . . . . . . . . Melee Attacks 203 | . . . . . . . . 4 3 1 3 1 . . . . . . . 14 . . . . 16 1 . 6 7 39 38 29 19 22 Impact 10 | . . . . . . . . 4 3 1 2 . . . . . . . . . . . . . . . . . . . . . . . Slashing 193 | . . . . . . . . . . . 1 1 . . . . . . . 14 . . . . 16 1 . 6 7 39 38 29 19 22 Piercing . | . . . . . . . . . . . . . . . . . . . . . . . . . . . . . . . . . . . Sneak Attacks 24 | . . . . . . . . . 2 . . . . . . . . . . 3 . . . . 3 . . . . 8 2 1 3 2 Combat Hostiles 1 | . . . . . . . . . . . . . . . . . . . . 1 . . . . . . . . . . . . . . Follow-up Attacks . | . . . . . . . . . . . . . . . . . . . . . . . . . . . . . . . . . . . Damage Inflicted 16952 | 30 696 371 2814 182 . 99 2783 77 490 44 . . 120 88 . 18 . . 35 611 . . 1897 263 381 . . 480 . 1442 638 531 677 2185 Guns 8712 | 30 363 195 2410 182 . 99 2656 . . 44 . . 120 88 . 18 . . 35 331 . . 881 33 . . . . . 316 62 . . 849 Cannons 1483 | . 333 176 404 . . . . . . . . . . . . . . . . . . . . . . . . . . . . . . 570 Explosions 1934 | . . . . . . . 126 . 278 . . . . . . . . . . . . . 1016 230 . . . . . 284 . . . . Melee 4722 | . . . . . . . . 77 212 . . . . . . . . . . 280 . . . . 381 . . 480 . 842 576 531 677 666 Ramming 101 | . . . . . . . 1 . . . . . . . . . . . . . . . . . . . . . . . . . . 100 Kinetic 6825 | 20 74 195 1990 182 . 99 2656 . . 44 . . 120 88 . 18 . . 35 331 . . 14 33 . . . . . . 62 . . 864 Thermal 2702 | 10 622 176 824 . . . . . . . . . . . . . . . . . . . 1016 . . . . . . 54 . . . . Explosive 918 | . . . . . . . 126 . 278 . . . . . . . . . . . . . . 230 . . . . . 284 . . . . Electromagnetic . | . . . . . . . . . . . . . . . . . . . . . . . . . . . . . . . . . . . Impact 289 | . . . . . . . . 77 212 . . . . . . . . . . . . . . . . . . . . . . . . . Slashing 4433 | . . . . . . . . . . . . . . . . . . . . 280 . . . . 381 . . 480 . 842 576 531 677 666 Piercing . | . . . . . . . . . . . . . . . . . . . . . . . . . . . . . . . . . . . Entropic 1684 | . . . . . . . . . . . . . . . . . . . . . . . 867 . . . . . . 262 . . . 555 Highest Corruption 22 | . . . . . . . . . . . . . . . . . . . . 2 2 2 2 . 3 3 3 3 3 . 2 . 1 22 Average Corruption 2 | . . . . . . . . . . . . . . . . . . . . 1 2 2 2 . 3 3 3 3 3 . 1 . 1 4 Corruption Purged . | . . . . . . . . . . . . . . . . . . . . . . . . . . . . . . . . . . . Corruption Blocked . | . . . . . . . . . . . . . . . . . . . . . . . . . . . . . . . . . . . Effects 33 | . . . . . . . . . . . . . . . . . . . . . 3 1 . . 1 3 . 2 3 . 2 . 1 17 Message Errors 8 | . . . . . . . . . . . . . . . . . . . . . 1 . . . . . . . 1 . . . . 6 Matter Fused 10 | . . . . . . . . . . . . . . . . . . . . . 2 . . . 1 1 . . 1 . 1 . 1 3 Heat Flow Errors 4 | . . . . . . . . . . . . . . . . . . . . . . . . . . . . 2 1 . . . . 1 Parts Rejected 1 | . . . . . . . . . . . . . . . . . . . . . . . . . . . . . . . . . . 1 Data Loss (minor) 6 | . . . . . . . . . . . . . . . . . . . . . . 1 . . . 1 . . . . . . . 4 Data Loss (major) 2 | . . . . . . . . . . . . . . . . . . . . . . . . . . . . . . . 1 . . 1 Misfires 2 | . . . . . . . . . . . . . . . . . . . . . . . . . . 1 . . . . . . . 1 Overload Shots . | . . . . . . . . . . . . . . . . . . . . . . . . . . . . . . . . . . . Overflow Damage 986 | . . . . . . . . 77 243 . . . . . . . . . . 33 . . 26 . 40 . . 53 . 46 . 3 176 289 Projectiles 138 | . . . . . . . . . . . . . . . . . . . . . . . . . . . . . . . . . . 138 Explosions 68 | . . . . . . . . . 42 . . . . . . . . . . . . . 26 . . . . . . . . . . . Melee 780 | . . . . . . . . 77 201 . . . . . . . . . . 33 . . . . 40 . . 53 . 46 . 3 176 151 Knockbacks 7 | . . . 3 . . . . 1 . . . . . . . . . . . . . . . . . . . . . . . . . 3 Impact 1 | . . . . . . . . 1 . . . . . . . . . . . . . . . . . . . . . . . . . . Kinetic 5 | . . . 2 . . . . . . . . . . . . . . . . . . . . . . . . . . . . . . 3 Secondary 1 | . . . 1 . . . . . . . . . . . . . . . . . . . . . . . . . . . . . . . Self-Inflicted Damage 170 | . . . . . . . 35 . . . . . . . . . 10 . 24 . . . . . . 1 . . . . . . . 100 Shots 4 | . . . . . . . 1 . . . . . . . . . 1 . 1 . . . . . . 1 . . . . . . . . Rammed 1 | . . . . . . . 1 . . . . . . . . . . . . . . . . . . . . . . . . . . . Targets Rammed 1 | . . . . . . . 1 . . . . . . . . . . . . . . . . . . . . . . . . . . . Kicked . | . . . . . . . . . . . . . . . . . . . . . . . . . . . . . . . . . . . Crushed . | . . . . . . . . . . . . . . . . . . . . . . . . . . . . . . . . . . . Highest Temperature 389 | 20 168 135 180 . . . 41 . . . . . 4 20 . 18 3 . 8 18 . . 65 6 66 140 272 292 254 332 51 53 232 389 Average Temperature 64 | 15 52 80 54 . . . 20 . . . . . 4 9 . 16 2 . 5 5 . . 15 3 21 54 168 74 86 88 9 28 116 89 Received Heat Transfer 1942 | . 162 129 540 . . . 801 18 . 9 . . . . . . . . . 45 18 . 18 . . . 30 . . 82 . . 18 72 Effects 2 | . . . . . . . . . . . . . . . . . . . . . . . . . . . . . . 2 . . . . Interference 2 | . . . . . . . . . . . . . . . . . . . . . . . . . . . . . . 2 . . . . Siege Activations . | . . . . . . . . . . . . . . . . . . . . . . . . . . . . . . . . . . . Martial Activations . | . . . . . . . . . . . . . . . . . . . . . . . . . . . . . . . . . . . Shielding Activations . | . . . . . . . . . . . . . . . . . . . . . . . . . . . . . . . . . . . Robots Disrupted . | . . . . . . . . . . . . . . . . . . . . . . . . . . . . . . . . . . . Combat Hostiles . | . . . . . . . . . . . . . . . . . . . . . . . . . . . . . . . . . . . Robots Corrupted 2 | . . . . . . . . 1 1 . . . . . . . . . . . . . . . . . . . . . . . . . Combat Hostiles . | . . . . . . . . . . . . . . . . . . . . . . . . . . . . . . . . . . . Parts Fried 2 | . . . . . . . . 1 1 . . . . . . . . . . . . . . . . . . . . . . . . . Impact Corruptions 18 | . . . . . . . . 3 15 . . . . . . . . . . . . . . . . . . . . . . . . . Robots Melted 4 | . . . . . . . . . . . . . . . . . . . . . . . . . . . . . . . . . . 4 Combat Hostiles 4 | . . . . . . . . . . . . . . . . . . . . . . . . . . . . . . . . . . 4 Parts Melted 10 | . 3 . 3 . . . . . . . . . . . . . . . . . . . . . . . . . . . . . . 4 Heat Transferred 4947 | 25 1569 370 2109 . . . . . . . . . . . . . . . . . . . 800 . . . . . . 74 . . . . Parts Sabotaged . | . . . . . . . . . . . . . . . . . . . . . . . . . . . . . . . . . . . Parts Stolen . | . . . . . . . . . . . . . . . . . . . . . . . . . . . . . . . . . . . Parts Stripped . | . . . . . . . . . . . . . . . . . . . . . . . . . . . . . . . . . . . Power Chain Reactions . | . . . . . . . . . . . . . . . . . . . . . . . . . . . . . . . . . . . Alert | -11 -10 -10 -9 -9 -9 -8 -8 -7 -7 -7 -7 -6 -6 -6 -6 -6 -6 -6 -5 -5 -5 -5 -5 -4 -4 -4 -4 -4 -3 -3 -3 -2 -2 -2 ------- Run | Yrd Mat Min Mat Min Exi Min Mat Fac Low Low Zio Pro Fac Was Fac Low Low Dat Pro Fac Upp Upp War Pro Fac Upp Upp Zhi Pro Res Tes Res Qua Frg Maximum Alert Level 2 | . . . 2 . . . 1 . . . . . . . . . . . . . . . . . . . . . . 1 1 . . 1 Low Security (%) 84 | 100 100 100 67 100 . 100 77 100 . . . . 100 100 100 . . . . 100 . . . . 100 . . . . 81 25 100 100 49 Level 1 14 | . . . 29 . . . 22 . . . . . . . . . . . . . . . . . . . . . . 18 74 . . 50 Level 2 . | . . . 3 . . . . . . . . . . . . . . . . . . . . . . . . . . . . . . . Level 3 . | . . . . . . . . . . . . . . . . . . . . . . . . . . . . . . . . . . . Level 4 . | . . . . . . . . . . . . . . . . . . . . . . . . . . . . . . . . . . . Level 5 . | . . . . . . . . . . . . . . . . . . . . . . . . . . . . . . . . . . . High Security . | . . . . . . . . . . . . . . . . . . . . . . . . . . . . . . . . . . . Max Security . | . . . . . . . . . . . . . . . . . . . . . . . . . . . . . . . . . . . Peak Influence 433 | 5 95 136 433 166 . 30 333 146 . . . . 78 21 . . . . . 168 . . . . 39 . . . . 260 278 150 80 374 Initial 168 | . . 31 40 166 . . 7 146 . . . . . 4 . . . . . 168 . . . . 37 . . . . . 139 150 40 27 Average 93 | 2 37 77 188 80 . 2 119 127 . . . . 15 6 . . . . . 110 . . . . 23 . . . . 94 214 24 38 182 Influence Increases 5372 | 5 412 205 933 . . 35 899 30 70 45 . 23 94 44 . 60 . . 40 241 . . 160 90 74 . 75 15 . 488 309 189 175 661 Destroy 0b10 Robot/C 2420 | . 200 140 560 . . 20 620 . 60 20 . 20 60 . . . . . . 20 . . 120 80 . . . . . 80 100 40 40 240 Destroy 0b10 Robot/NC 310 | 5 20 5 70 . . 5 30 5 . . . . 5 . . . . . 10 15 . . 10 . 20 . . 15 . 45 20 5 10 15 Destroy Leader 594 | . 64 30 154 . . 10 184 2 10 10 . . 10 . . . . . . 16 . . . 10 4 . . . . 16 26 . 14 34 Allied During Kill 23 | . . . . . . . 1 . . . . 3 19 . . . . . . . . . . . . . . . . . . . . . Successful Hack 143 | . 21 . 6 . . . 14 6 . . . . . . . . . . . 7 . . . . . . . . . 30 38 . 21 . Select Force Hacks 120 | . 60 . 60 . . . . . . . . . . . . . . . . . . . . . . . . . . . . . . . Disable Machine 390 | . 30 15 15 . . . 15 15 . . . . . . . . . . . . . . . . . . . . . 45 90 . 60 105 Destroy Structure 352 | . 2 . 8 . . . 20 2 . . . . . 44 . . . . . 18 . . . . 20 . . . . 92 20 54 30 42 Advance Influence 150 | . . . . . . . . . . . . . . . . . . . . 150 . . . . . . . . . . . . . . Partial Spotted 210 | . . . . . . . . . . . . . . . . . . . . . . . . . . . . . . 30 15 45 . 120 Lose Combat Pursuer 660 | . 15 15 60 . . . 15 . . 15 . . . . . 60 . . 30 15 . . 30 . 30 . 75 . . 150 . 45 . 105 Influence Decreases 5180 | 5 329 182 610 429 . 15 597 236 114 112 5 23 80 58 . 60 . . 10 232 39 . 47 143 123 11 20 70 . 240 289 385 198 518 Entered New Map 1148 | . . 52 66 263 . . 13 176 44 15 5 . . 10 . . . . . 12 15 . . 113 23 5 . 55 . . 109 118 32 22 Time Decay 3395 | 5 319 130 494 166 . 15 351 60 70 77 . 10 80 37 . 60 . . 10 190 24 . 47 30 100 6 20 15 . 180 180 267 166 286 Lost Part 450 | . 10 . 50 . . . 80 . . 20 . . . . . . . . . 30 . . . . . . . . . 50 . . . 210 Lost Ally 74 | . . . . . . . 40 . . . . 13 . 11 . . . . . . . . . . . . . . . 10 . . . . Purge Threat 113 | . . . . . . . 113 . . . . . . . . . . . . . . . . . . . . . . . . . . . Squads Dispatched 38 | . 3 . 5 . . . 7 2 . . . . 2 . . . . . . . . . . . 1 . . . . 5 6 1 3 3 Investigation 9 | . 2 . 2 . . . 2 . . . . . 1 . . . . . . . . . . . 1 . . . . 1 . . . . Extermination 8 | . . . . . . . . . . . . . 1 . . . . . . . . . . . . . . . . 2 1 . 2 2 Reinforcement 15 | . 1 . 3 . . . 3 2 . . . . . . . . . . . . . . . . . . . . . 2 1 1 1 1 Assault 1 | . . . . . . . . . . . . . . . . . . . . . . . . . . . . . . . 1 . . . Garrison 5 | . . . . . . . 2 . . . . . . . . . . . . . . . . . . . . . . . 3 . . . Intercept . | . . . . . . . . . . . . . . . . . . . . . . . . . . . . . . . . . . . Searches Triggered . | . . . . . . . . . . . . . . . . . . . . . . . . . . . . . . . . . . . Construction Impeded 1 | . . . . . . . 1 . . . . . . . . . . . . . . . . . . . . . . . . . . . Haulers Reinforced 2 | . . . . . . . . . . . . . . . . . . . . . . . . . . . . . . 1 . 1 . . Active Scanning Responses . | . . . . . . . . . . . . . . . . . . . . . . . . . . . . . . . . . . . Cargo Convoy Interrupts . | . . . . . . . . . . . . . . . . . . . . . . . . . . . . . . . . . . . Stealth | -11 -10 -10 -9 -9 -9 -8 -8 -7 -7 -7 -7 -6 -6 -6 -6 -6 -6 -6 -5 -5 -5 -5 -5 -4 -4 -4 -4 -4 -3 -3 -3 -2 -2 -2 --------- Run | Yrd Mat Min Mat Min Exi Min Mat Fac Low Low Zio Pro Fac Was Fac Low Low Dat Pro Fac Upp Upp War Pro Fac Upp Upp Zhi Pro Res Tes Res Qua Frg Distress Signals 17 | . 2 . 5 . . . 3 . . . . . . . . . . . . . . . . . . . . . . 2 . 3 . 2 Communications Jammed . | . . . . . . . . . . . . . . . . . . . . . . . . . . . . . . . . . . . Distress Signals . | . . . . . . . . . . . . . . . . . . . . . . . . . . . . . . . . . . . Times Spotted 325 | . 20 8 40 1 . 1 43 3 3 3 . . 1 6 . 4 . . 4 5 1 . 41 4 3 . 5 . . 45 6 15 12 51 Peak Tracking Total 15 | . 3 3 5 1 . 1 8 2 3 2 . . . 2 . 4 . . 3 2 1 . 10 4 2 . 5 . . 15 2 3 5 13 Tactical Retreats 28 | . 1 1 2 . . . 1 . . 1 . . . . . 1 . . 1 1 . . 2 . 1 . 2 . . 6 . 2 1 5 ECM-based Alert Blocks 26 | . . . . . . . . . . . . . . . . . . . . . . . . . . . . . . 12 . 1 4 9 Traps | -11 -10 -10 -9 -9 -9 -8 -8 -7 -7 -7 -7 -6 -6 -6 -6 -6 -6 -6 -5 -5 -5 -5 -5 -4 -4 -4 -4 -4 -3 -3 -3 -2 -2 -2 ------- Run | Yrd Mat Min Mat Min Exi Min Mat Fac Low Low Zio Pro Fac Was Fac Low Low Dat Pro Fac Upp Upp War Pro Fac Upp Upp Zhi Pro Res Tes Res Qua Frg Traps Triggered 13 | . 1 . . . . . 2 . . . . . 1 . . . . . . 1 . . . . . . . . . . 2 . . 6 Indirectly . | . . . . . . . . . . . . . . . . . . . . . . . . . . . . . . . . . . . Trap Hack Attempts . | . . . . . . . . . . . . . . . . . . . . . . . . . . . . . . . . . . . Triggered . | . . . . . . . . . . . . . . . . . . . . . . . . . . . . . . . . . . . Disarmed . | . . . . . . . . . . . . . . . . . . . . . . . . . . . . . . . . . . . Reprogrammed . | . . . . . . . . . . . . . . . . . . . . . . . . . . . . . . . . . . . Reused . | . . . . . . . . . . . . . . . . . . . . . . . . . . . . . . . . . . . Traps Extracted . | . . . . . . . . . . . . . . . . . . . . . . . . . . . . . . . . . . . Installed . | . . . . . . . . . . . . . . . . . . . . . . . . . . . . . . . . . . . Triggered . | . . . . . . . . . . . . . . . . . . . . . . . . . . . . . . . . . . . Machines | -11 -10 -10 -9 -9 -9 -8 -8 -7 -7 -7 -7 -6 -6 -6 -6 -6 -6 -6 -5 -5 -5 -5 -5 -4 -4 -4 -4 -4 -3 -3 -3 -2 -2 -2 ---------- Run | Yrd Mat Min Mat Min Exi Min Mat Fac Low Low Zio Pro Fac Was Fac Low Low Dat Pro Fac Upp Upp War Pro Fac Upp Upp Zhi Pro Res Tes Res Qua Frg Machines Disabled 28 | . 2 1 1 . . . 1 1 1 . . . . . . . . . . . . . . . . . . . . 3 6 . 4 8 Max in Single Turn 2 | . 1 1 1 . . . 1 1 1 . . . . . . . . . . . . . . . . . . . . 1 1 . 1 2 Garrison Access 3 | . . . . . . . 1 . . . . . . . . . . . . . . . . . . . . . . . . 2 . . Machines Repaired . | . . . . . . . . . . . . . . . . . . . . . . . . . . . . . . . . . . . Machines Dismantled . | . . . . . . . . . . . . . . . . . . . . . . . . . . . . . . . . . . . Machines Sabotaged . | . . . . . . . . . . . . . . . . . . . . . . . . . . . . . . . . . . . Overloaded Fab Kills . | . . . . . . . . . . . . . . . . . . . . . . . . . . . . . . . . . . . Hacking | -11 -10 -10 -9 -9 -9 -8 -8 -7 -7 -7 -7 -6 -6 -6 -6 -6 -6 -6 -5 -5 -5 -5 -5 -4 -4 -4 -4 -4 -3 -3 -3 -2 -2 -2 --------- Run | Yrd Mat Min Mat Min Exi Min Mat Fac Low Low Zio Pro Fac Was Fac Low Low Dat Pro Fac Upp Upp War Pro Fac Upp Upp Zhi Pro Res Tes Res Qua Frg Machines Accessed 80 | . 9 . 7 2 1 . 8 2 . 1 1 . 2 . . . . 4 . 4 . 1 2 . 2 1 . 3 . 7 8 5 7 3 Terminals 35 | . 6 . 2 . . . 6 1 . 1 . . . . . . . . . 1 . . . . . . . . . 4 5 2 5 2 Fabricators 4 | . . . . . . . . 1 . . . . . . . . . . . 2 . . . . . . . . . 1 . . . . Repair Stations 12 | . 1 . 2 . . . 1 . . . . . 2 . . . . . . . . . . . 1 . . . . 2 2 . 1 . Recycling Units 4 | . 2 . 2 . . . . . . . . . . . . . . . . . . . . . . . . . . . . . . . Scanalyzers 6 | . . . 1 . . . . . . . . . . . . . . . . 1 . . . . 1 . . . . . 1 1 . 1 Garrison Access 4 | . . . . . . . 1 . . . . . . . . . . . . . . . . . . . . . . . . 2 1 . Total Hacks 210 | . 25 . 18 2 1 . 21 3 . 1 3 . 6 . . . . 27 . 18 . 1 2 . 6 1 . 13 . 19 20 6 13 4 Successful 123 | . 11 . 10 2 1 . 9 2 . 1 3 . 3 . . . . 27 . 9 . 1 2 . 2 1 . 13 . 7 6 3 7 3 Failed 86 | . 14 . 8 . . . 12 1 . . . . 3 . . . . . . 9 . . . . 4 . . . . 12 13 3 6 1 Catastrophic 15 | . . . 1 . . . . 1 . . . . . . . . . . . 3 . . . . . . . . . 4 3 2 1 . Database Lockouts 1 | . . . . . . . . . . . . . . . . . . . . . . . . . . . . . . . 1 . . . Manual 57 | . 20 . 6 . . . 11 . 1 . . . . . . . . . . 6 . . 1 . 1 . . . . 10 1 . . . Terminals 94 | . 21 . 9 . . . 17 1 . 1 . . . . . . . . . 7 . . . . . . . . . 10 14 2 9 3 Fabricators 10 | . . . . . . . . 2 . . . . . . . . . . . 6 . . . . . . . . . 2 . . . . Repair Stations 28 | . 2 . 4 . . . 2 . . . . . 6 . . . . . . . . . . . 2 . . . . 7 3 . 2 . Recycling Units 4 | . 2 . 2 . . . . . . . . . . . . . . . . . . . . . . . . . . . . . . . Scanalyzers 17 | . . . 3 . . . . . . . . . . . . . . . . 5 . . . . 4 . . . . . 3 1 . 1 Garrison Access 7 | . . . . . . . 2 . . . . . . . . . . . . . . . . . . . . . . . . 3 2 . Terminal Hacks 73 | . 1 . 4 2 1 . 4 . . 1 3 . . . . . . 27 . 1 . 1 2 . . 1 . 13 . . 4 1 5 2 Record 15 | . . . . . 1 . . . . 1 . . . . . . . 11 . . . . . . . . . 1 . . . . . 1 Part Schematic 16 | . . . . . . . . . . . 3 . . . . . . 9 . . . . . . . . . 4 . . . . . . Robot Schematic 4 | . . . . . . . . . . . . . . . . . . 4 . . . . . . . . . . . . . . . . Robot Analysis 7 | . . . 2 . . . . . . . . . . . . . . . . . . . . . . . . 4 . . . . 1 . Prototype ID Bank 11 | . 1 . 1 . . . 2 . . . . . . . . . . 3 . . . . . . . . . 4 . . . . . . Open Door 7 | . . . . 2 . . . . . . . . . . . . . . . . . 1 2 . . 1 . . . . 1 . . . Open DSF 1 | . . . . . . . . . . . . . . . . . . . . . . . . . . . . . . . . 1 . . Branch Access Points 1 | . . . . . . . . . . . . . . . . . . . . 1 . . . . . . . . . . . . . . Alert Level 2 | . . . 1 . . . . . . . . . . . . . . . . . . . . . . . . . . . . . 1 . Unreport Threat 1 | . . . . . . . 1 . . . . . . . . . . . . . . . . . . . . . . . . . . . Locate Traps 2 | . . . . . . . . . . . . . . . . . . . . . . . . . . . . . . . . . 1 1 Recall Extermination 1 | . . . . . . . . . . . . . . . . . . . . . . . . . . . . . . . . . 1 . Recall Reinforcements 1 | . . . . . . . . . . . . . . . . . . . . . . . . . . . . . . . . . 1 . Hauler Manifests 1 | . . . . . . . 1 . . . . . . . . . . . . . . . . . . . . . . . . . . . Zone Layout 1 | . . . . . . . . . . . . . . . . . . . . . . . . . . . . . . . 1 . . . Protovariant Controls 2 | . . . . . . . . . . . . . . . . . . . . . . . . . . . . . . . 2 . . . Fabricator Hacks 5 | . . . . . . . . 2 . . . . . . . . . . . 2 . . . . . . . . . 1 . . . . Network Status 2 | . . . . . . . . 1 . . . . . . . . . . . 1 . . . . . . . . . . . . . . Load Schematic 2 | . . . . . . . . . . . . . . . . . . . . 1 . . . . . . . . . 1 . . . . Build 1 | . . . . . . . . 1 . . . . . . . . . . . . . . . . . . . . . . . . . . Repair Station Hacks 15 | . 2 . 3 . . . 1 . . . . . 3 . . . . . . . . . . . . . . . . 3 1 . 2 . Scan Component 10 | . 1 . 2 . . . 1 . . . . . 2 . . . . . . . . . . . . . . . . 2 1 . 1 . Repair 5 | . 1 . 1 . . . . . . . . . 1 . . . . . . . . . . . . . . . . 1 . . 1 . Recycling Unit Hacks . | . . . . . . . . . . . . . . . . . . . . . . . . . . . . . . . . . . . Scanalyzer 9 | . . . . . . . . . . . . . . . . . . . . 5 . . . . 1 . . . . . 1 1 . 1 Insert Component 1 | . . . . . . . . . . . . . . . . . . . . . . . . . 1 . . . . . . . . . Retrieve Study 8 | . . . . . . . . . . . . . . . . . . . . 5 . . . . . . . . . . 1 1 . 1 Garrison Access Hacks 2 | . . . . . . . 1 . . . . . . . . . . . . . . . . . . . . . . . . 1 . . Seal Access 2 | . . . . . . . 1 . . . . . . . . . . . . . . . . . . . . . . . . 1 . . Unauthorized Hacks 19 | . 8 . 3 . . . 3 . . . . . . . . . . . . 1 . . . . 1 . . . . 3 . . . . Terminals 13 | . 6 . 1 . . . 3 . . . . . . . . . . . . 1 . . . . . . . . . 2 . . . . Assimilate 1 | . . . . . . . . . . . . . . . . . . . . . . . . . . . . . . 1 . . . . Botnet 10 | . 5 . 1 . . . 3 . . . . . . . . . . . . 1 . . . . . . . . . . . . . . Disrupt 1 | . . . . . . . . . . . . . . . . . . . . . . . . . . . . . . 1 . . . . Operators 1 | . 1 . . . . . . . . . . . . . . . . . . . . . . . . . . . . . . . . . Fabricators . | . . . . . . . . . . . . . . . . . . . . . . . . . . . . . . . . . . . Repair Stations 2 | . . . . . . . . . . . . . . . . . . . . . . . . . 1 . . . . 1 . . . . Patch 2 | . . . . . . . . . . . . . . . . . . . . . . . . . 1 . . . . 1 . . . . Recycling Units 4 | . 2 . 2 . . . . . . . . . . . . . . . . . . . . . . . . . . . . . . . Tunnel 4 | . 2 . 2 . . . . . . . . . . . . . . . . . . . . . . . . . . . . . . . Scanalyzers . | . . . . . . . . . . . . . . . . . . . . . . . . . . . . . . . . . . . Garrison Access . | . . . . . . . . . . . . . . . . . . . . . . . . . . . . . . . . . . . Data Cores Recovered 1 | . . . . . . . 1 . . . . . . . . . . . . . . . . . . . . . . . . . . . Used . | . . . . . . . . . . . . . . . . . . . . . . . . . . . . . . . . . . . Hacking Detections 52 | . 7 . 5 . . . 8 2 . . . . 1 . . . . . . 4 . . . . 2 . . . . 7 7 2 6 1 Full Trace Events . | . . . . . . . . . . . . . . . . . . . . . . . . . . . . . . . . . . . Feedback Events . | . . . . . . . . . . . . . . . . . . . . . . . . . . . . . . . . . . . Feedback Blocked . | . . . . . . . . . . . . . . . . . . . . . . . . . . . . . . . . . . . Robot Schematics Acquired 8 | . . . . . . . . . . . 3 . . . . . . 4 . . . . . . . . . . . . . . 1 . Robots Built . | . . . . . . . . . . . . . . . . . . . . . . . . . . . . . . . . . . . Authchips . | . . . . . . . . . . . . . . . . . . . . . . . . . . . . . . . . . . . Time 134 | . . . . . . . . 134 . . . . . . . . . . . . . . . . . . . . . . . . . . Total Robot Build Rating . | . . . . . . . . . . . . . . . . . . . . . . . . . . . . . . . . . . . Part Schematics Acquired 42 | . . . . . . . . . . . 15 . . . . . . 9 . . . . . . . . . 4 . . 11 . 3 . Parts Built . | . . . . . . . . . . . . . . . . . . . . . . . . . . . . . . . . . . . Authchips . | . . . . . . . . . . . . . . . . . . . . . . . . . . . . . . . . . . . Time . | . . . . . . . . . . . . . . . . . . . . . . . . . . . . . . . . . . . Total Part Build Rating . | . . . . . . . . . . . . . . . . . . . . . . . . . . . . . . . . . . . Part Studies Acquired 8 | . . . . . . . . . . . . . . . . . . . . 5 . . . . . . . . . . 1 1 . 1 Parts Repaired 4 | . 1 . 1 . . . . . . . . . 1 . . . . . . . . . . . . . . . . . . . 1 . Time 245 | . 38 . 26 . . . . . . . . . 26 . . . . . . . . . . . . . . . . 47 . . 108 . Parts Recycled . | . . . . . . . . . . . . . . . . . . . . . . . . . . . . . . . . . . . Recycled Matter . | . . . . . . . . . . . . . . . . . . . . . . . . . . . . . . . . . . . Retrieved Matter . | . . . . . . . . . . . . . . . . . . . . . . . . . . . . . . . . . . . Retrieved Components . | . . . . . . . . . . . . . . . . . . . . . . . . . . . . . . . . . . . Parts Scanalyzed . | . . . . . . . . . . . . . . . . . . . . . . . . . . . . . . . . . . . Part Schematics Acquired . | . . . . . . . . . . . . . . . . . . . . . . . . . . . . . . . . . . . Parts Damaged . | . . . . . . . . . . . . . . . . . . . . . . . . . . . . . . . . . . . Bothacking | -11 -10 -10 -9 -9 -9 -8 -8 -7 -7 -7 -7 -6 -6 -6 -6 -6 -6 -6 -5 -5 -5 -5 -5 -4 -4 -4 -4 -4 -3 -3 -3 -2 -2 -2 ------------ Run | Yrd Mat Min Mat Min Exi Min Mat Fac Low Low Zio Pro Fac Was Fac Low Low Dat Pro Fac Upp Upp War Pro Fac Upp Upp Zhi Pro Res Tes Res Qua Frg Used RIF Installer . | . . . . . . . . . . . . . . . . . . . . . . . . . . . . . . . . . . . Robots Hacked . | . . . . . . . . . . . . . . . . . . . . . . . . . . . . . . . . . . . Non-combat . | . . . . . . . . . . . . . . . . . . . . . . . . . . . . . . . . . . . Combat . | . . . . . . . . . . . . . . . . . . . . . . . . . . . . . . . . . . . Robot Hacks Applied . | . . . . . . . . . . . . . . . . . . . . . . . . . . . . . . . . . . . Relay Couplers Released 3 | . . . . . . . . . . . . . . . . . . . . . . . . . . . . . . . . 3 . . Machine Destruction 3 | . . . . . . . . . . . . . . . . . . . . . . . . . . . . . . . . 3 . . Fabnet Peak Effective % . | . . . . . . . . . . . . . . . . . . . . . . . . . . . . . . . . . . . Robots Rewired . | . . . . . . . . . . . . . . . . . . . . . . . . . . . . . . . . . . . Allies Hacked . | . . . . . . . . . . . . . . . . . . . . . . . . . . . . . . . . . . . Hacks Repelled . | . . . . . . . . . . . . . . . . . . . . . . . . . . . . . . . . . . . Allies | -11 -10 -10 -9 -9 -9 -8 -8 -7 -7 -7 -7 -6 -6 -6 -6 -6 -6 -6 -5 -5 -5 -5 -5 -4 -4 -4 -4 -4 -3 -3 -3 -2 -2 -2 -------- Run | Yrd Mat Min Mat Min Exi Min Mat Fac Low Low Zio Pro Fac Was Fac Low Low Dat Pro Fac Upp Upp War Pro Fac Upp Upp Zhi Pro Res Tes Res Qua Frg Total Allies 27 | . . . . . . . . . . . 6 . . 20 . . . . . . . . . . . . . . . 1 . . . . Largest Group 22 | . . . . . . . . . . . 6 6 4 22 . . . . . . . . . . . . . . . 1 . . . . Highest-Rated Group 789 | . . . . . . . . . . . 169 169 112 789 . . . . . . . . . . . . . . . 10 . . . . Highest-Rated Ally 50 | . . . . . . . . . . . 31 31 31 50 . . . . . . . . . . . . . . . 10 . . . . Total Orders 1 | . . . . . . . 1 . . . . . . . . . . . . . . . . . . . . . . . . . . . RETURN 1 | . . . . . . . 1 . . . . . . . . . . . . . . . . . . . . . . . . . . . Ally Attacks 167 | . . . . . . . 29 . . . . 7 15 116 . . . . . . . . . . . . . . . . . . . . Total Damage 6518 | . . . . . . . 104 . . . . 65 306 6043 . . . . . . . . . . . . . . . . . . . . Kills 20 | . . . . . . . 1 . . . . 1 3 15 . . . . . . . . . . . . . . . . . . . . Allies Corrupted . | . . . . . . . . . . . . . . . . . . . . . . . . . . . . . . . . . . . Allies Melted 2 | . . . . . . . . . . . . . . . . . . . . . . . 2 . . . . . . . . . . . Intel | -11 -10 -10 -9 -9 -9 -8 -8 -7 -7 -7 -7 -6 -6 -6 -6 -6 -6 -6 -5 -5 -5 -5 -5 -4 -4 -4 -4 -4 -3 -3 -3 -2 -2 -2 ------- Run | Yrd Mat Min Mat Min Exi Min Mat Fac Low Low Zio Pro Fac Was Fac Low Low Dat Pro Fac Upp Upp War Pro Fac Upp Upp Zhi Pro Res Tes Res Qua Frg Active Infowar (turns) 11106 | . . . 1105 362 198 204 1031 123 147 323 443 324 443 123 51 201 104 27 291 397 393 126 606 162 218 118 77 87 206 427 376 1436 347 630 Optics 8161 | . . . . . . . . 78 147 323 443 324 443 123 51 201 104 27 291 397 393 126 606 162 218 118 77 87 206 427 376 1436 347 630 Sensors 7717 | . . . . . . . . 88 147 323 443 324 443 120 51 201 104 27 291 397 393 126 602 162 218 118 77 87 206 337 310 1435 344 343 Terrain 211 | . . . . . . . . . . . . . . . . . . . . . . . . . . . . . . . . . 157 54 Structural 334 | . . . . . . . . . . . . . . . . . . . . . . . . . . . . . . . . 334 . . T.N.C. 68 | . . . . . . . . . . . . . . . . . . . . 68 . . . . . . . . . . . . . . Machine Analysis 3576 | . . . 1105 362 198 204 1031 123 147 323 83 . . . . . . . . . . . . . . . . . . . . . . . Cloaking 73 | . . . . . . . . . . . . . . . . . . . . . . . 67 . 1 5 . . . . . . . . ECM 155 | . . . . . . . . . . . . . . . . . . . . . . . . . 1 . . . . 16 . 5 64 69 Robot Analysis Total 7 | . . . 2 . . . . . . . . . . . . . . . . . . . . . . . . 4 . . . . 1 . Derelict Logs Recovered 14 | . . . . 2 . . . . 1 1 2 1 . . . 1 . . 1 . . 1 . 2 . 1 1 . . . . . . . Drone Launches 9 | . . . . . . . 9 . . . . . . . . . . . . . . . . . . . . . . . . . . . Drone Recoveries 7 | . . . . . . . 7 . . . . . . . . . . . . . . . . . . . . . . . . . . . Exploration | -11 -10 -10 -9 -9 -9 -8 -8 -7 -7 -7 -7 -6 -6 -6 -6 -6 -6 -6 -5 -5 -5 -5 -5 -4 -4 -4 -4 -4 -3 -3 -3 -2 -2 -2 ------------- Run | Yrd Mat Min Mat Min Exi Min Mat Fac Low Low Zio Pro Fac Was Fac Low Low Dat Pro Fac Upp Upp War Pro Fac Upp Upp Zhi Pro Res Tes Res Qua Frg Turns Passed 12570 | 23 982 262 1302 362 198 204 1031 123 147 323 443 324 443 123 51 201 104 27 291 397 393 126 606 162 218 118 77 87 206 427 376 1436 347 630 Spaces Moved 18482 | 10 708 168 612 285 170 158 466 157 429 429 827 664 172 247 140 494 278 78 606 720 433 281 988 414 589 392 242 165 613 1011 902 2662 745 1227 Core 25 | . . . . . . . . . . . . . . . . . . . . . . . . . . . . . . . . . . 25 Treads 63 | . . . 1 . . . 48 14 . . . . . . . . . . . . . . . . . . . . . . . . . . Legs . | . . . . . . . . . . . . . . . . . . . . . . . . . . . . . . . . . . . Wheels 2528 | 10 708 168 611 285 170 158 418 . . . . . . . . . . . . . . . . . . . . . . . . . . . Hover . | . . . . . . . . . . . . . . . . . . . . . . . . . . . . . . . . . . . Flight 15866 | . . . . . . . . 143 429 429 827 664 172 247 140 494 278 78 606 720 433 281 988 414 589 392 242 165 613 1011 902 2662 745 1202 Fastest Speed 5 | 100 100 115 115 115 115 115 105 28 28 28 31 34 34 34 34 34 34 34 34 34 44 44 22 27 22 24 17 19 19 5 6 5 5 5 Average Speed 39 | 100 109 115 120 115 115 115 126 49 28 28 33 34 35 34 34 34 34 34 34 36 45 44 36 30 25 24 23 21 19 16 19 18 17 16 Slowest Speed 320 | 100 115 115 240 115 115 115 320 165 28 31 34 34 38 38 34 34 34 34 34 44 130 44 44 31 31 24 24 24 19 19 20 20 85 50 Overloaded Moves 599 | . . . . . . . . . . . . . . . . . . . . . . . 14 . 7 . 15 . . 176 6 26 29 326 Propulsion Burnouts 1 | . . . . . . . . . . . . . . . . . . . . . . . . . . . . . . . . . . 1 Robots Hopped 55 | . . . . . . . . 1 1 . . . 1 . 2 . . . . 10 . . 3 . 2 . 2 . . 10 2 12 . 9 Potential Cave-ins 2 | . . . . . . . . . . 2 . . . . . . . . . . . . . . . . . . . . . . . . Cave-ins Triggered . | . . . . . . . . . . . . . . . . . . . . . . . . . . . . . . . . . . . Teleports 5 | . . . . . . . . . . . . . . . . . . . . . . . . . . . . . . 1 . . 3 1 Exploration Rate (%) 52 | 2 95 52 65 52 49 36 45 6 66 63 80 75 3 94 5 64 39 73 61 17 58 50 92 56 13 59 47 61 78 34 70 71 69 38 Regions Visited 34 Branch Regions 23 Pre-discovered Areas 14 | . 2 . 2 1 1 . . . . 1 5 . . . . . . 1 . . . . . 1 . . . . . . . . . . Known Exits Taken 24 | . . . . 1 . . . 1 1 1 1 1 . . 1 1 1 1 1 1 1 1 1 1 1 1 1 1 1 . 1 1 1 . Unknown Exits Taken 8 | 1 1 1 1 . 1 1 1 . . . . . . . . . . . . . . . . . . . . . . 1 . . . . Scrap Searched 24 | . . 1 . . . 1 . . 3 . 4 2 . . . 1 2 . 2 . 1 1 . 3 . . . . 3 . . . . . Spaces Dug 404 | . . . . . . . . 2 . 14 . 1 . . . 18 40 . 70 9 33 . . . 10 28 35 . 53 39 10 18 10 14 Terrain Destroyed 617 | . . . 1 . . . 31 2 17 43 . 1 . . . 18 40 . 84 9 47 . 30 14 10 44 49 . 72 49 11 18 10 17 Melee 101 | . . . . . . . . 2 . 1 . 1 . . . . . . . 9 . . . . 10 1 . . 7 19 9 18 10 14 Projectile 33 | . . . 1 . . . . . . . . . . . . . . . . . . . 16 2 . . . . . 10 1 . . 3 AOE 482 | . . . . . . . 31 . 17 42 . . . . . 18 40 . 84 . 47 . 14 12 . 43 49 . 65 20 . . . . Terrain Rammed 1 | . . . . . . . . . . . . . . . . . . . . . . . . . . . . . . . . . . 1 Walls Destroyed . | . . . . . . . . . . . . . . . . . . . . . . . . . . . . . . . . . . . Machines Disabled 1 | . . . . . . . . . . . . . . . . . . . . . . . . . . . . . . . . . . 1 Actions | -11 -10 -10 -9 -9 -9 -8 -8 -7 -7 -7 -7 -6 -6 -6 -6 -6 -6 -6 -5 -5 -5 -5 -5 -4 -4 -4 -4 -4 -3 -3 -3 -2 -2 -2 --------- Run | Yrd Mat Min Mat Min Exi Min Mat Fac Low Low Zio Pro Fac Was Fac Low Low Dat Pro Fac Upp Upp War Pro Fac Upp Upp Zhi Pro Res Tes Res Qua Frg Total 22729 | 18 835 197 932 304 172 168 734 195 445 619 987 759 544 279 141 522 282 77 680 802 624 282 1205 442 636 409 253 208 686 1200 1050 3547 928 1567 Wait 3033 | . 55 1 142 5 . . 90 9 11 180 143 93 363 20 . 25 . . 65 43 184 2 182 21 15 4 7 23 52 108 52 828 127 183 Move 18350 | 9 707 167 611 284 169 157 466 154 426 428 826 663 170 246 135 493 277 77 605 700 432 280 981 413 584 391 237 164 612 993 897 2642 744 1210 Hop 45 | . . . . . . . . 1 1 . . . 1 . 2 . . . . 9 . . 3 . 2 . 2 . . 7 2 7 . 8 Pick Up 89 | 2 13 1 18 2 1 2 11 1 . . 1 . . 1 1 . . . . 2 . . 3 1 1 2 . 1 . 4 5 5 8 3 Fast Attach 92 | . 2 1 2 . . . 9 1 . . 4 . 3 5 . . . . . 5 . . 4 . 4 1 . 2 1 8 9 4 3 24 Attach 63 | . . 1 7 . . . 7 7 . . . . . . . . . . . 1 . . 3 . 1 . . 1 1 7 3 3 7 14 Detach 66 | . . 1 1 . . . 3 4 . . 2 . . 1 . . . . . 2 . . 1 . 2 1 . 2 1 6 7 5 4 23 Swap 192 | 3 7 4 17 4 1 1 13 5 2 5 5 2 . . 1 2 2 . 2 7 5 . 8 3 6 5 3 6 7 7 17 16 11 15 Drop 137 | 2 8 2 12 2 1 2 24 9 . 1 3 . 2 3 2 . . . . 4 . . 4 . 5 1 . 3 . 5 13 7 5 17 Fire 451 | 2 43 19 122 7 . 6 111 . 2 4 . . 5 3 . 2 3 . 8 15 3 . 16 4 . 3 4 . 5 16 7 . . 41 Melee 203 | . . . . . . . . 4 3 1 3 1 . . . . . . . 14 . . . . 16 1 . 6 7 39 38 29 19 22 Ram 1 | . . . . . . . . . . . . . . . . . . . . . . . . . . . . . . . . . . 1 Kick . | . . . . . . . . . . . . . . . . . . . . . . . . . . . . . . . . . . . Crush . | . . . . . . . . . . . . . . . . . . . . . . . . . . . . . . . . . . . Escape Stasis 6 | . . . . . . . . . . . . . . . . . . . . . . . . . . . . . . . . . . 6 Rewire 1 | . . . . . . . . . . . . . . . . . . . . . . . . . . . . . . . . 1 . . Trap . | . . . . . . . . . . . . . . . . . . . . . . . . . . . . . . . . . . . Miscellaneous . | . . . . . . . . . . . . . . . . . . . . . . . . . . . . . . . . . . . Route ------- -11/Scrapyard -10/Materials (discovered 4 exits: *Mat x3 / [*Min]) -10/Mines -9/Materials (discovered 2 exits: *Mat / *Min) -9/Mines (discovered 4 exits: *Mat x2 / *Exi / *Zio) -9/Exiles -8/Mines -8/Materials -7/Factory -7/Lower Caves -7/Lower Caves (discovered 2 exits: *Fac / *Zio) -7/Zion -6/Proximity Caves -6/Factory (discovered 3 exits: Fac x2 / Low) -6/Waste -6/Factory -6/Lower Caves -6/Lower Caves (discovered 2 exits: *Fac / *Dat) -6/Data Miner -5/Proximity Caves -5/Factory (discovered 3 exits: *Fac / *Upp x2) -5/Upper Caves -5/Upper Caves (discovered 2 exits: *Fac / *War) -5/Warlord -4/Proximity Caves -4/Factory -4/Upper Caves -4/Upper Caves (discovered 2 exits: *Res / *Zhi) -4/Zhirov -3/Proximity Caves -3/Research (discovered 2 exits: *Res / *Tes) -3/Testing -2/Research (discovered 4 exits: *Acc x3 / *Qua) -2/Quarantine (discovered 3 exits: *Acc / *Sec / *Frg) -2/Protoforge (discovered 1 exit: *Acc) History --------- Turn | Location | Event 13 | -11/Scrapyard | Discovered new exit (range 3) 24 | -11/Scrapyard | Entered Materials 37 | -10/Materials | Discovered new exit (range 14) 288 | -10/Materials | Discovered new exit (range 8) 306 | -10/Materials | Build established: Mutant 539 | -10/Materials | Discovered new exit (range 8) 834 | -10/Materials | Discovered new exit (range 4) 883 | -10/Materials | Repaired Lgt. Nuclear Core 1006 | -10/Materials | Entered Mines 1197 | -10/Mines | Received a Rocket Launcher from a helpful Derelict 1261 | -10/Mines | Discovered new exit (range 7) 1268 | -10/Mines | Entered Materials 1268 | -9/Materials | Evolved 2 slots: Propulsion x1, Utility x1 1841 | -9/Materials | Repaired Lgt. Treads 1871 | -9/Materials | Discovered new exit (range 7) 2031 | -9/Materials | Discovered new exit (range 15) 2132 | -9/Materials | Build established: Scavenger-Mutant 2570 | -9/Materials | Entered Mines 2571 | -9/Mines | A Derelict revealed a hidden shortcut to a safe place 2644 | -9/Mines | Discovered new exit (range 7) 2651 | -9/Mines | Met a Derelict who couldn't figure out how to use a Trap Extractor 2720 | -9/Mines | Learned location of Zion (-7) 2761 | -9/Mines | Found the Drone Emporium 2765 | -9/Mines | Found Prototype Device 2765 | -9/Mines | Identified Thief Drone Bay 2839 | -9/Mines | Discovered new exit (range 11) 2864 | -9/Mines | Identified exit to Exiles 2899 | -9/Mines | Destroyed YI-UF0 2926 | -9/Mines | Deemed a non-threat by the Exiles lab entrance 2932 | -9/Mines | Entered Exiles 2962 | -9/Exiles | Met 8R-AWN 2982 | -9/Exiles | Met EX-HEX 3026 | -9/Exiles | Met EX-DEC 3121 | -9/Exiles | Discovered new exit (range 10) 3130 | -9/Exiles | Entered Mines 3278 | -8/Mines | Found a Scrap Suit stashed away for nefarious purposes 3316 | -8/Mines | Core integrity fell below 50% 3322 | -8/Mines | Discovered new exit (range 6) 3334 | -8/Mines | Entered Materials 3334 | -8/Materials | Evolved 2 slots: Propulsion x1, Utility x1 4028 | -8/Materials | Garrison activated, responded to threat 4062 | -8/Materials | Lost 3 parts (2n1w) 4166 | -8/Materials | Discovered new exit (range 5) 4285 | -8/Materials | Lost 3 parts (2n1w) 4365 | -8/Materials | Entered Factory 4365 | -7/Factory | Evolved 2 slots: Propulsion x1, Utility x1 4453 | -7/Factory | Discovered new exit (range 16) 4460 | -7/Factory | Identified exit to Lower Caves 4488 | -7/Factory | Entered Lower Caves 4491 | -7/Lower Caves | Acquired the password to a Derelict Tinkerer's latest research 4573 | -7/Lower Caves | Encountered a Warlord checkpoint 4573 | -7/Lower Caves | Learned location of 1 exit from Factory 4601 | -7/Lower Caves | Spotted B-75 Beast 4634 | -7/Lower Caves | Discovered new exit (range 7) 4635 | -7/Lower Caves | Identified exit to Lower Caves 4635 | -7/Lower Caves | Entered another Lower Caves area 4643 | -7/Lower Caves | Discovered new exit (range 10) 4644 | -7/Lower Caves | Learned location of Extension (-4) 4653 | -7/Lower Caves | Identified exit to Factory 4684 | -7/Lower Caves | Build established: Scavenger-Scout 4915 | -7/Lower Caves | Spotted B-75 Beast 4956 | -7/Lower Caves | Discovered new exit (range 5) 4958 | -7/Lower Caves | Identified exit to Zion 4958 | -7/Lower Caves | Entered Zion 4970 | -7/Zion | Gained Derelict followers 4987 | -7/Zion | Learned 8 Factory zone layouts 4990 | -7/Zion | Learned location of Storage (-7) 5020 | -7/Zion | Found Prototype Device 5020 | -7/Zion | Identified Phasing AFG 5123 | -7/Zion | Learned location of Quarantine (-2) 5129 | -7/Zion | Given A8's code to call for help 5150 | -7/Zion | Learned location of Warlord (-5) 5282 | -7/Zion | Discovered new exit (range 19) 5289 | -7/Zion | Identified exit to Proximity Caves 5374 | -7/Zion | Build established: Hacker-Scout 5401 | -7/Zion | Entered Proximity Caves 5401 | -6/Proximity Caves | Accompanied by 6 allies 5403 | -6/Proximity Caves | Learned Factory garrison access intel 5623 | -6/Proximity Caves | Spotted B-75 Beast 5660 | -6/Proximity Caves | Discovered exit to Factory (range 11) 5725 | -6/Proximity Caves | Entered Factory 5725 | -6/Factory | Accompanied by 4 allies 5725 | -6/Factory | Evolved 2 slots: Propulsion x1, Utility x1 5726 | -6/Factory | Identified exit to Lower Caves 5727 | -6/Factory | Identified exit to Factory 5728 | -6/Factory | Loaded intel: 4 garrison access locations 6072 | -6/Factory | Build established: Hacker-Skirmisher 6162 | -6/Factory | Repaired Flight Unit 6168 | -6/Factory | Manually triggered Chute Trap 6168 | -6/Factory | Sucked down chute 6168 | -6/Factory | Entered Waste 6168 | -6/Waste | Met up with 1 ally sucked down the chute earlier 6179 | -6/Waste | Warlord forces began an assault 6183 | -6/Waste | 2 allies followed down the chute 6199 | -6/Waste | Spotted C-40 Crusher 6199 | -6/Waste | Allies destroyed C-40 Crusher 6200 | -6/Waste | Spotted C-40 Crusher 6207 | -6/Waste | Spotted C-40 Crusher 6210 | -6/Waste | Allies destroyed C-40 Crusher 6224 | -6/Waste | Allies destroyed C-40 Crusher 6240 | -6/Waste | Spotted C-40 Crusher 6241 | -6/Waste | Spotted C-40 Crusher 6241 | -6/Waste | Allies destroyed C-40 Crusher 6242 | -6/Waste | Spotted C-40 Crusher 6278 | -6/Waste | Found Prototype Processor 6278 | -6/Waste | Identified Exp. Terrain Scan Processor 6284 | -6/Waste | Discovered new exit (range 20) 6288 | -6/Waste | Lost 11 allies 6290 | -6/Waste | Identified exit to Factory 6291 | -6/Waste | Entered Factory 6327 | -6/Factory | Discovered exit to Lower Caves (range 5) 6342 | -6/Factory | Entered Lower Caves 6418 | -6/Lower Caves | Build established: Hacker-Scout 6422 | -6/Lower Caves | Encountered a Warlord checkpoint 6530 | -6/Lower Caves | Learned Factory emergency access door positions 6538 | -6/Lower Caves | Discovered new exit (range 5) 6540 | -6/Lower Caves | Identified exit to Lower Caves 6543 | -6/Lower Caves | Entered another Lower Caves area 6554 | -6/Lower Caves | Discovered exit to Factory (range 17) 6641 | -6/Lower Caves | Discovered new exit (range 7) 6642 | -6/Lower Caves | Identified exit to Data Miner 6647 | -6/Lower Caves | Entered Data Miner 6647 | -6/Data Miner | Discovered new exit (range 6) 6653 | -6/Data Miner | Met Data Miner 6660 | -6/Data Miner | Learned location of Section 7 (-2) 6660 | -6/Data Miner | Acquired the access code to Warlord's prototype stash 6666 | -6/Data Miner | Received God Mode back door access code from Data Miner 6673 | -6/Data Miner | Identified exit to Proximity Caves 6674 | -6/Data Miner | Entered Proximity Caves 6677 | -5/Proximity Caves | Spotter reported a threat 6844 | -5/Proximity Caves | Learned 8 Factory zone layouts 6961 | -5/Proximity Caves | Discovered exit to Factory (range 10) 6965 | -5/Proximity Caves | Entered Factory 6965 | -5/Factory | Evolved 2 slots: Utility x2 7117 | -5/Factory | Discovered new exit (range 20) 7131 | -5/Factory | Identified exit to Factory 7141 | -5/Factory | Identified exit to Upper Caves 7362 | -5/Factory | Entered Upper Caves 7709 | -5/Upper Caves | Spotted B-75 Beast 7742 | -5/Upper Caves | Discovered new exit (range 10) 7746 | -5/Upper Caves | Identified exit to Upper Caves 7755 | -5/Upper Caves | Entered another Upper Caves area 7756 | -5/Upper Caves | Learned Factory security intel 7764 | -5/Upper Caves | Discovered exit to Factory (range 17) 7879 | -5/Upper Caves | Discovered new exit (range 5) 7880 | -5/Upper Caves | Identified exit to Warlord 7881 | -5/Upper Caves | Entered Warlord 7896 | -5/Warlord | System corruption cleaned by Quarantine Array 7982 | -5/Warlord | Met Warlord 8007 | -5/Warlord | Warlord's base attacked by MAIN.C 8087 | -5/Warlord | Opened Warlord's prototype stash 8096 | -5/Warlord | Found Prototype Device 8096 | -5/Warlord | Identified Exp. Cloaking Device 8102 | -5/Warlord | Found Prototype Device 8102 | -5/Warlord | Identified Exp. Focal Shield 8142 | -5/Warlord | Found Prototype Energy Gun 8142 | -5/Warlord | Identified Vortex Rail 8149 | -5/Warlord | Found Vortex Rail 8279 | -5/Warlord | Opened side exit 8294 | -5/Warlord | Lost 6 allies 8357 | -5/Warlord | Warlord forces counterattacked 8410 | -5/Warlord | Spotted Striker 8452 | -5/Warlord | Spotted Executioner 8455 | -5/Warlord | Destroyed 7 combat bots 8473 | -5/Warlord | Spotted Executioner 8482 | -5/Warlord | Spotted Executioner 8484 | -5/Warlord | Discovered new exit (range 10) 8486 | -5/Warlord | Identified exit to Proximity Caves 8487 | -5/Warlord | Entered Proximity Caves 8518 | -4/Proximity Caves | Lost 9 allies 8543 | -4/Proximity Caves | Learned Research trap positions 8596 | -4/Proximity Caves | Spotted B-86 Titan 8647 | -4/Proximity Caves | Discovered exit to Factory (range 9) 8649 | -4/Proximity Caves | Entered Factory 8649 | -4/Factory | Evolved 2 slots: Utility x2 8848 | -4/Factory | Discovered new exit (range 6) 8852 | -4/Factory | Identified exit to Upper Caves 8867 | -4/Factory | Entered Upper Caves 8940 | -4/Upper Caves | Spotted B-86 Titan 8950 | -4/Upper Caves | Learned Research trap positions 8959 | -4/Upper Caves | Encountered a Warlord checkpoint 8982 | -4/Upper Caves | Discovered new exit (range 13) 8985 | -4/Upper Caves | Identified exit to Upper Caves 8985 | -4/Upper Caves | Entered another Upper Caves area 8985 | -4/Upper Caves | Spotted B-86 Titan 8988 | -4/Upper Caves | Discovered new exit (range 5) 9002 | -4/Upper Caves | Learned Research trap positions 9059 | -4/Upper Caves | Discovered new exit (range 10) 9061 | -4/Upper Caves | Identified exit to Zhirov 9062 | -4/Upper Caves | Entered Zhirov 9064 | -4/Zhirov | Discovered new exit (range 3) 9068 | -4/Zhirov | Met Zhirov 9075 | -4/Zhirov | Zhirov requested help retrieving the SGEMP Prototype 9079 | -4/Zhirov | Found Alien Artifact 9079 | -4/Zhirov | Identified Integrated Reactor 9079 | -4/Zhirov | Installed Integrated Reactor, increased core energy generation (+10) 9086 | -4/Zhirov | Found Alien Artifact 9134 | -4/Zhirov | Identified exit to Proximity Caves 9149 | -4/Zhirov | Entered Proximity Caves 9352 | -3/Proximity Caves | Discovered new exit (range 18) 9355 | -3/Proximity Caves | Identified exit to Research 9355 | -3/Proximity Caves | Entered Research 9355 | -3/Research | Evolved 2 slots: Power x1, Utility x1 9356 | -3/Research | Loaded intel: 86 trap records 9365 | -3/Research | Spotted B-86 Titan 9450 | -3/Research | Discovered new exit (range 15) 9453 | -3/Research | Identified exit to Research 9485 | -3/Research | Identified Transdimensional Reconstructor 9485 | -3/Research | Warped through subspace 9571 | -3/Research | Spotted B-86 Titan 9666 | -3/Research | Watched by a mysterious "MATRIX" hacker. 9756 | -3/Research | Lost 5 parts (3u2w) 9781 | -3/Research | Discovered new exit (range 20) 9782 | -3/Research | Entered Testing 9805 | -3/Testing | Protovariant out of control (PY-AA66GI07TR) 9805 | -3/Testing | Unleashed a protovariant (PY-AA66GI07TR) 9863 | -3/Testing | Found Prototype Energy Gun 9863 | -3/Testing | Identified Warp Gun 9894 | -3/Testing | Found Prototype Launcher 9894 | -3/Testing | Identified Hellfire Missile Launcher 9911 | -3/Testing | Garrison activated, responded to threat 9949 | -3/Testing | Found Prototype Processor 9949 | -3/Testing | Identified Exp. Melee Analysis Suite 9951 | -3/Testing | Found Exp. Melee Analysis Suite 9966 | -3/Testing | Discovered exit to Research (range 15) 9981 | -3/Testing | Spotted PY-AA66GI07TR 10000 | -3/Testing | Central database locked down 10017 | -3/Testing | Found Prototype Ballistic Gun 10017 | -3/Testing | Identified Hyp. Multirail 10106 | -3/Testing | Found Lgt. Regenerative Plating 10158 | -3/Testing | Entered Research 10158 | -2/Research | Warlord forces began assault on 0b10 10158 | -2/Research | Evolved 2 slots: Utility x2 10159 | -2/Research | Loaded intel: 84 trap records 10268 | -2/Research | Research machine network offline 10373 | -2/Research | Lost 3 allies 10589 | -2/Research | Found Prototype Processor 10591 | -2/Research | Identified Exp. Core Analyzer 10619 | -2/Research | Found Prototype Processor 10619 | -2/Research | Identified Spectral Analyzer 10658 | -2/Research | Met up with Warlord 10700 | -2/Research | Found Exp. Terrain Scanner 10715 | -2/Research | Discovered new exit (range 24) 10719 | -2/Research | Identified exit to Access 10747 | -2/Research | Spotted Executioner 10771 | -2/Research | Destroyed Executioner 10774 | -2/Research | Found Exp. Core Analyzer 10776 | -2/Research | Found Prototype Device 10776 | -2/Research | Identified Adv. Kinecellerator 10789 | -2/Research | Lost 3 allies 11158 | -2/Research | Warlord invited to help at Command 11158 | -2/Research | Given Cave Seal Controls access code 11233 | -2/Research | Spotted Striker 11435 | -2/Research | Discovered exit to Access (range 18) 11451 | -2/Research | Spotted Striker 11463 | -2/Research | Found Prototype Device 11463 | -2/Research | Identified Exp. Shock Absorption System 11493 | -2/Research | Spotted Executioner 11556 | -2/Research | Spotted B-90 Cyclops 11561 | -2/Research | Spotted Striker 11589 | -2/Research | Spotted Executioner 11591 | -2/Research | Discovered new exit (range 21) 11592 | -2/Research | Discovered exit to Access (range 4) 11594 | -2/Research | Identified exit to Quarantine 11594 | -2/Research | Entered Quarantine 11630 | -2/Quarantine | Found Alien Artifact 11630 | -2/Quarantine | Identified Phase Redirector 11657 | -2/Quarantine | Discovered exit to Access (range 28) 11664 | -2/Quarantine | Found Alien Impact Weapon 11664 | -2/Quarantine | Identified Core Stripper 11687 | -2/Quarantine | Found Transdimensional Reconstructor 11799 | -2/Quarantine | Repaired Cld. Impulse Thruster 11806 | -2/Quarantine | Found Transdimensional Reconstructor 11823 | -2/Quarantine | Warped through subspace 11824 | -2/Quarantine | Warped through subspace 11843 | -2/Quarantine | Found Transdimensional Reconstructor 11844 | -2/Quarantine | Found Transdimensional Reconstructor 11873 | -2/Quarantine | Warped through subspace 11908 | -2/Quarantine | Found Alien Artifact 11927 | -2/Quarantine | Spotted Fortress 11939 | -2/Quarantine | Discovered new exit (range 5) 11939 | -2/Quarantine | Discovered new exit (range 6) 11939 | -2/Quarantine | Identified exit to Protoforge 11940 | -2/Quarantine | Identified exit to Section 7 11941 | -2/Quarantine | Entered Protoforge 11984 | -2/Protoforge | Spotted Hotshot 11985 | -2/Protoforge | Spotted Hotshot 11987 | -2/Protoforge | Spotted Hotshot 11987 | -2/Protoforge | Spotted Hotshot 11987 | -2/Protoforge | Spotted Hotshot 11987 | -2/Protoforge | Spotted Hotshot 11996 | -2/Protoforge | Spotted Hotshot 11996 | -2/Protoforge | Spotted Hotshot 11998 | -2/Protoforge | Superfortress began startup sequence 12002 | -2/Protoforge | Spotted B-90 Cyclops 12028 | -2/Protoforge | Spotted Hotshot 12028 | -2/Protoforge | Spotted Hotshot 12028 | -2/Protoforge | Spotted Hotshot 12028 | -2/Protoforge | Spotted Hotshot 12052 | -2/Protoforge | Spotted Hotshot 12055 | -2/Protoforge | Discovered exit to Access (range 8) 12164 | -2/Protoforge | Found Prototype Slashing Weapon 12164 | -2/Protoforge | Identified Exp. Terror Saw 12167 | -2/Protoforge | Spotted Overlord 12178 | -2/Protoforge | Spotted V520-b 12189 | -2/Protoforge | Spotted V021-q 12189 | -2/Protoforge | Spotted V350-e 12195 | -2/Protoforge | Identified Subatomic Replicator 12195 | -2/Protoforge | Used Subatomic Replicator to replicate Hyp. Multirail 12223 | -2/Protoforge | Found Prototype Ballistic Gun 12223 | -2/Protoforge | Identified Cep. XC Strikerail 12226 | -2/Protoforge | Found Cep. XC Strikerail 12234 | -2/Protoforge | Found Prototype Ballistic Cannon 12234 | -2/Protoforge | Identified Cep. Heavy Railcannon 12238 | -2/Protoforge | Found Prototype Energy Gun 12238 | -2/Protoforge | Identified Cep. Lightning Penetrator 12240 | -2/Protoforge | Found Prototype Energy Gun 12240 | -2/Protoforge | Identified Cep. Disintegration Ray 12243 | -2/Protoforge | Found Prototype Energy Gun 12243 | -2/Protoforge | Identified Cep. Variable Chargecaster 12245 | -2/Protoforge | Found Prototype Slashing Weapon 12245 | -2/Protoforge | Identified Cep. Deflector Sword 12279 | -2/Protoforge | Spotted V670-x 12280 | -2/Protoforge | Found Cep. Disintegration Ray 12303 | -2/Protoforge | Spotted Decapitator 12303 | -2/Protoforge | Spotted Decapitator 12303 | -2/Protoforge | Spotted Decapitator 12303 | -2/Protoforge | Spotted Decapitator 12327 | -2/Protoforge | Warped through subspace 12346 | -2/Protoforge | Spotted V899-g 12346 | -2/Protoforge | Spotted V957-k 12347 | -2/Protoforge | Spotted Immortal 12347 | -2/Protoforge | Spotted Immortal 12392 | -2/Protoforge | Found Prototype Device 12392 | -2/Protoforge | Identified Mni. Quantum Capacitor 12394 | -2/Protoforge | Found Prototype Device 12394 | -2/Protoforge | Identified Cep. Countertargeting System 12396 | -2/Protoforge | Found Prototype Device 12396 | -2/Protoforge | Identified Cep. Networked Targeting System 12399 | -2/Protoforge | Found Prototype Device 12399 | -2/Protoforge | Identified Cep. Weapon Articulator 12403 | -2/Protoforge | Found Prototype Device 12403 | -2/Protoforge | Identified Cep. Recoil Nullifier 12414 | -2/Protoforge | Found Prototype Processor 12414 | -2/Protoforge | Identified Cep. Melee Reflex Suite 12416 | -2/Protoforge | Found Prototype Device 12416 | -2/Protoforge | Identified Cep. Hypertargeting System 12419 | -2/Protoforge | Found Prototype Device 12419 | -2/Protoforge | Identified Femtoactuators 12432 | -2/Protoforge | Spotted AP7-3 12451 | -2/Protoforge | Additional patrols dispatched to research labs 12513 | -2/Protoforge | System corruption reached 10% 12514 | -2/Protoforge | Spotted V224-h 12552 | -2/Protoforge | Core integrity fell below 50% 12567 | -2/Protoforge | Core integrity fell below 20% 12571 | -2/Protoforge | Destroyed by V957-k with Concept XC Strikerail Last Messages --------------- 12556_ Field strength at 39. 12557_ Field strength at 33. 12557_ Adv. Hacking Suite destroyed. 12557_ P-80 Master resets P-80 Master, system corruption cleaned. 12558_ Field strength at 14. 12558_ Penetrated by Slug. 12558_ Slug penetrates Reinforced Barrier. 12558_ Stasis field depleted. 12560_ Slug penetrates U-05 Engineer. 12560_ Slug penetrates P-80 Master. 12560_ Slug penetrates Reinforced Barrier. 12561_ U-05 Engineer lays Concrete. 12561_ Penetrated by Slug. 12565_ Slug penetrates P-80 Master. 12565_ P-80 Master destroyed. 12565_ Slug penetrates Reinforced Barrier. 12566_ Penetrated by Slug. 12569_ Slug penetrates Reinforced Barrier. 12571_ Penetrated by Slug. Map ----- +----------------------------------------------------+ | ?????????????????????????????????????????????????? | | ?????????????????????????????????????????????????? | | ?????????????????????????????????????????????????? | | ?????????????????????????????????????????????????? | | ?????????????????????????????????????????????????? | | ?????????????????????????????????????????????????? | | ?????????????????????????????????????????????????? | | ?????????????????????????????????????????????????? | | ?????????????????????????????????????????????????? | | ?????????????????????????????????????????????????? | | ???????????????????????????????????????????????"?? | | ???????????????????????????????????????????????"?? | | ???????????????????????????????????????????????"?? | | ?????????????????????????????????????????????? "?? | | ?????????????????????????????????????????????? #?? | | ?????????????????????????????????????????????? #?? | | ?????????????????????????????????????????????? #?? | | ?????????????????????????????????????????????? #?? | | ?????????????????????????????????????????????? #?? | | ????????????????????????????????????????????? #?? | | ????????????????????????????????????????????? #?? | | ????????????????????????????????????????????? #?? | | ?????????????????????#??????????????????????? #?? | | ?????????????????????# ?????????????????????? #?? | | ???????############### ##################### #?? | | ?? @ V= ##? | | ?? p|p Y #? | | ??? V%![ Y #? | | ?????####++###################+++########* #####? | | ??????????????????????????# #???# #????? | | ??????????????????????????# #???# #????? | | ??????????????????????????# " " #???# #????? | | ??????????????????????????# " " #???# #????? | | ??????????????????????????# ""G"" #???# #????? | | ??????????????????????????# #???# =#????? | | ??????????????????????????###########???# = ###### | | ????????????????????????????????????????# | | ????????????????????????????????????????# | | ????????????????????????????????????????# | | ????????????????????????????????????????######## | | ???????????????????????????????????????????????# | | ???????????????????????????????????????????????# | | ???????????????????????????????????????????????# | | ???????????????????????????????????????????????# | | ???????????????????????????????????????????????## | | ????????????????????????????????????????????????# | | ????????????????????????????????????????######### | | ????????????????????????????????????????#"""""""" | | ????????????????????????????????????????# """" | | ?????????????######???######???######???# "" | +----------------------------------------------------+ Best States ------------- Heat Dissipation 80 Energy Generation 48 Energy Capacity 350 Matter Stores 300 Matter Capacity 300 Sight Range 24 Robot Scan Range 16 Terrain Scan Range 30 Terrain Scan Density 210 ECM Strength 2 Cloak Strength 4 Armor Coverage 600 Propulsion Shielding 66 Utility Shielding 66 Weapon Shielding 90 Melee Speed Boost 50 Phase Shifting 10 Evasion (%) 82 Targeting Accuracy 30 Melee Accuracy 12 Core Analysis 12 Recoil Reduction 4 Offensive Hacking 28 Defensive Hacking 26 Item Schematics ----------------- Battle Cannon | -7/Zion | Free Barrage Gun | -7/Zion | Free Slug Cannon | -7/Zion | Free Weapon Cycler | -7/Zion | Archive Hvy. Plasma Cannon | -7/Zion | Archive Corruption Screen | -7/Zion | Archive Enh. Optical Array | -7/Zion | Archive Lyr. Light Armor Plating | -7/Zion | Archive Angular Momentum Engine | -7/Zion | Archive Imp. Shield Generator | -7/Zion | Archive Disruptor Cannon | -7/Zion | Archive Variable Charge Gun | -7/Zion | Archive Gravmag System | -7/Zion | Archive Imp. System Shield | -7/Zion | Archive Adv. Terrain Scanner | -7/Zion | Archive Combat Drone Bay | -6/Data Miner | Free Lgt. Regenerative Plating | -6/Data Miner | Free Enh. Armored Leg | -6/Data Miner | Free Prc. Matter Filter | -6/Data Miner | Free Tiamat Missile Launcher | -6/Data Miner | Free Imp. Antigrav System | -6/Data Miner | Free Adv. Particle Charger | -6/Data Miner | Free Adv. Datajack | -6/Data Miner | Free Mic. Antimatter Reactor | -6/Data Miner | Free Assault Drone Bay | -4/Zhirov | Free Exp. Heat Sink | -4/Zhirov | Free Exp. Optical Array | -4/Zhirov | Free Imp. Arc Thrower | -4/Zhirov | Free Enh. Biometal Leg | -3/Testing | Archive Exp. Signal Interpreter | -3/Testing | Archive Hvy. Proton Missile Launcher | -3/Testing | Archive Exp. Terrain Scanner | -3/Testing | Archive Graviton Reactor | -3/Testing | Archive Electron Diverter | -3/Testing | Archive Exp. Thermal Shield | -3/Testing | Archive Adv. Variable Charge Gun | -3/Testing | Archive Cld. Field Propulsion Drive | -3/Testing | Archive Kinetic Spear | -3/Testing | Archive Exp. Targeting Computer | -3/Testing | Archive Imp. Diametric Drive | -2/Quarantine | Archive Cld. Linear Gravjet | -2/Quarantine | Archive Hvy. Dispersion Rifle | -2/Quarantine | Archive Robot Schematics ------------------ K-01 Serf | -7/Zion | Archive L-41 Fighter | -7/Zion | Archive Y-72 Warden | -7/Zion | Archive R-10 Processor | -6/Data Miner | Free A-15 Conveyor | -6/Data Miner | Free B-48 Gladiator | -6/Data Miner | Free B-60 Warrior | -6/Data Miner | Free X-87 Electro | -2/Quarantine | Archive Fabricated ------------ Nothing Repaired ---------- Lgt. Nuclear Core | 12% | -10/Materials Lgt. Treads | 70% | -9/Materials Flight Unit | 35% | -6/Factory Cld. Impulse Thruster | 48% | -2/Quarantine Studied --------- Flight Unit | -5/Factory | Hacked Imp. Grenade Launcher | -5/Factory | Hacked Minigun | -5/Factory | Hacked Mic. Nuclear Core | -5/Factory | Hacked Nuclear Pulse Thruster | -5/Factory | Hacked Field Propulsion Drive | -3/Testing | Hacked Mic. Antimatter Reactor | -2/Research | Hacked Lgt. Quantum Reactor | -2/Protoforge | Hacked Alien Tech Used ----------------- Integrated Reactor Transdimensional Reconstructor Phase Redirector Core Stripper Subatomic Replicator Achievements -------------- None Challenges ------------ None Game ------ Seed IonicSurgeCarapace Manual? 0 Play Time 04:46:57 Cumulative 226.3 hours Start 2026.04.25 @ 00:17:27 End 2026.04.26 @ 00:52:03 Sessions 6 Manual Loads 0 Difficulty Rogue Special Mode None Game No. 127 Rogue 127 Adventurer 0 Explorer 0 Win Type - Total 8 Types 4/0/2/1/0/0/0/1/0/0 Lore% 66 Gallery% 61 Achievement% 54 Wizard Run 0 Options --------- Layout 2 ASCII 0 Keyboard 1 Movement Arrows Keybinds 0 Fullscreen 2 Font 24/Terminus Map View 50x44 Zoom Use 0% Tactical HUD 1 Map Filters NONE Filters NONE Steam 1 RUN: 6bbfeed7-89f7-42b1-9663-061f5617627e